Workbook

Sheet Расчет
C2: 1 | D2: 2 | E2: 3 | F2: 4 | G2: 5 | H2: 6 | I2: 7 | J2: 8 | K2: 9 | L2: 10 | M2: 11 | N2: 12 | O2: 13 | P2: 14 | Q2: 15 | R2: 16
C3: Дата | D3: Наименование | E3: Операция | F3: Место | G3: Поставщик | H3: Договор | I3: Заказ | J3: Дата поставки | K3: Номер акта | L3: Остаток на складе | M3: Приход | N3: Расход | O3: Остаток | P3: Кому выдано | Q3: Единицы | R3: Группа
C4: 2018-08-01 | D4: Маска медицинская трёхслойная, одноразовая | E4: Операции со складом | F4: Склад | K4: 1 | L4: 400 | N4: 50 | O4: 350 | Q4: шт. | R4: Расходники
C5: 2018-08-01 | D5: Бонадерм - крем для рук восстанавливающий (100 мл.) | E5: Операции со складом | F5: Склад | K5: 2 | L5: 42 | N5: 1 | O5: 41 | Q5: шт. | R5: Расходники
C6: 2018-08-01 | D6: Перчатки (нестер, латекс.) | E6: Операции со складом | F6: Склад | K6: 2 | L6: 3050 | N6: 500 | O6: 2550 | Q6: пар. | R6: Расходники
C7: 2018-08-01 | D7: Салфетка спиртовая (стер., 60х100 мм., 70%) | E7: Операции со складом | F7: Склад | K7: 2 | L7: 2650 | N7: 650 | O7: 2000 | Q7: шт. | R7: Расходники
C8: 2018-08-01 | D8: Азитромицин (таб., 125 мг, №6) | E8: Остатки по договору | L8: 0 | O8: 0 | Q8: таб. | R8: Медикаменты
C9: 2018-08-01 | D9: Амброксол (р-р, 7,5 мг./1 мл., 100 мл.) | E9: Остатки по договору | L9: 0 | O9: 0 | Q9: фл. | R9: Медикаменты
C10: 2018-08-01 | D10: Беродуал (р-р флакон/кап. по 20 мл.) | E10: Остатки по договору | L10: 0 | O10: 0 | Q10: фл. | R10: Медикаменты
C11: 2018-08-01 | D11: Бинт (нест.) | E11: Остатки по договору | L11: 0 | O11: 0 | Q11: шт. | R11: t
C12: 2018-08-01 | D12: Бинт (стер.) | E12: Остатки по договору | L12: 0 | O12: 0 | Q12: шт. | R12: t
C13: 2018-08-01 | D13: Бонадерм-гель (100 мл.) | E13: Остатки по договору | L13: 0 | O13: 0 | Q13: шт. | R13: Дезсредства
C14: 2018-08-01 | D14: Бонадерм-ИП салфетки (100 шт.) | E14: Остатки по договору | L14: 0 | O14: 0 | Q14: уп. | R14: Дезсредства
C15: 2018-08-01 | D15: Бонадерм-Ультра (100 мл., с распыляющей насадкой) | E15: Остатки по договору | L15: 0 | O15: 0 | Q15: шт. | R15: Дезсредства
C16: 2018-08-01 | D16: Бонадерм-Ультра (50 мл., с распыляющей насадкой) | E16: Остатки по договору | L16: 0 | O16: 0 | Q16: шт. | R16: Дезсредства
C17: 2018-08-01 | D17: Бромгексин (таб., 4 мг., № 50) | E17: Остатки по договору | L17: 0 | O17: 0 | Q17: таб. | R17: Медикаменты
C18: 2018-08-01 | D18: Бромгексин (таб., 8 мг., № 20) | E18: Остатки по договору | L18: 0 | O18: 0 | Q18: таб. | R18: Медикаменты
C19: 2018-08-01 | D19: Бумага для спирографа Микролаб viasys (110*12*12) | E19: Остатки по договору | L19: 0 | O19: 0 | Q19: уп. | R19: t
C20: 2018-08-01 | D20: Бумага УЗИ сканер (20 м.) | E20: Остатки по договору | L20: 0 | O20: 0 | Q20: рул. | R20: t
C21: 2018-08-01 | D21: Бумага ЭКГ (110 мм. х 30 мм.) | E21: Остатки по договору | L21: 0 | O21: 0 | Q21: рул. | R21: t
C22: 2018-08-01 | D22: Вата (нест. 100 гр.) | E22: Остатки по договору | L22: 0 | O22: 0 | Q22: гр. | R22: Расходники
C23: 2018-08-01 | D23: Вата (нест. 100 гр.) | E23: Остатки по договору | L23: 0 | O23: 0 | Q23: гр. | R23: t
C24: 2018-08-01 | D24: Вата (нест. 250 гр.) | E24: Остатки по договору | L24: 0 | O24: 0 | Q24: гр. | R24: t
C25: 2018-08-01 | D25: Вата (стер. 100 гр.) | E25: Остатки по договору | L25: 0 | O25: 0 | Q25: гр. | R25: Расходники
C26: 2018-08-01 | D26: Вата (стер. 100 гр.) | E26: Остатки по договору | L26: 0 | O26: 0 | Q26: гр. | R26: t
C27: 2018-08-01 | D27: Ватные палочки, ушные (100 шт.) | E27: Остатки по договору | L27: 0 | O27: 0 | Q27: уп. | R27: t
C28: 2018-08-01 | D28: Ватные шарики (стер., №20) | E28: Остатки по договору | L28: 0 | O28: 0 | Q28: уп. | R28: Расходники
C29: 2018-08-01 | D29: Ватные шарики (стер., №20) | E29: Остатки по договору | L29: 0 | O29: 0 | Q29: уп. | R29: t
C30: 2018-08-01 | D30: Вентолин Небулы (амп., для ингаляций 1 мг/мл., 2,5 мл. № 20) | E30: Остатки по договору | L30: 0 | O30: 0 | Q30: уп. | R30: Медикаменты
C31: 2018-08-01 | D31: Гель для УЗИ (5 л.) | E31: Остатки по договору | L31: 0 | O31: 0 | Q31: л. | R31: t
C32: 2018-08-01 | D32: Глицин (таб., 100 мг., №50) | E32: Остатки по договору | L32: 0 | O32: 0 | Q32: таб. | R32: Медикаменты
C33: 2018-08-01 | D33: Губка гемостатическая коллагеновая (50х50 мм.) | E33: Остатки по договору | L33: 0 | O33: 0 | Q33: шт. | R33: t
C34: 2018-08-01 | D34: Дексаметазон (сусп., 5 мл., №1) | E34: Остатки по договору | L34: 0 | O34: 0 | Q34: фл. | R34: t
C35: 2018-08-01 | D35: Игла с визуальной камерой Vacuette (0,8х38 мм (21Gх1 ½), 100 шт.) | E35: Остатки по договору | L35: 0 | O35: 0 | Q35: уп. | R35: Расходники
C36: 2018-08-01 | D36: Калия йодит (2%-200 мл.) | E36: Остатки по договору | L36: 0 | O36: 0 | Q36: фл. | R36: Растворы
C37: 2018-08-01 | D37: Кальция хлорид (2%-200мл.) | E37: Остатки по договору | L37: 0 | O37: 0 | Q37: фл. | R37: Растворы
C38: 2018-08-01 | D38: Кальция хлорид (2%-200мл.) | E38: Остатки по договору | L38: 0 | O38: 0 | Q38: фл. | R38: t
C39: 2018-08-01 | D39: Карандаш по стеклу (50 шт. в уп.) | E39: Остатки по договору | L39: 0 | O39: 0 | Q39: уп. | R39: t
C40: 2018-08-01 | D40: Комплект "Кассетница с пеналами-таблетница" | E40: Остатки по договору | L40: 0 | O40: 0 | Q40: шт. | R40: t
C41: 2018-08-01 | D41: Контейнер для предварительной дезинфекции и стерилизации (1,3л.) | E41: Остатки по договору | L41: 0 | O41: 0 | Q41: шт. | R41: t
C42: 2018-08-01 | D42: Контейнер для предварительной дезинфекции и стерилизации (4,5л.) | E42: Остатки по договору | L42: 0 | O42: 0 | Q42: шт. | R42: t
C43: 2018-08-01 | D43: Контейнер для предварительной дезинфекции и стерилизации (7,5 л.) | E43: Остатки по договору | L43: 0 | O43: 0 | Q43: шт. | R43: t
C44: 2018-08-01 | D44: Контейнер для сбора м/отх. Кл. Б (50 л.) | E44: Остатки по договору | L44: 0 | O44: 0 | Q44: шт. | R44: t
C45: 2018-08-01 | D45: Контейнер для утилизации отходов МК-01 (однораз., желтый, 0,25 л.) | E45: Остатки по договору | L45: 0 | O45: 0 | Q45: шт. | R45: t
C46: 2018-08-01 | D46: Контейнер для утилизации отходов МК-01 (однораз., желтый, 3 л.) | E46: Остатки по договору | L46: 0 | O46: 0 | Q46: шт. | R46: t
C47: 2018-08-01 | D47: Лейкопластырь (бактер. 2,5х7,2 см.) | E47: Остатки по договору | L47: 0 | O47: 0 | Q47: шт. | R47: t
C48: 2018-08-01 | D48: Лейкопластырь (катушка, 2х500 см.) | E48: Остатки по договору | L48: 0 | O48: 0 | Q48: шт. | R48: t
C49: 2018-08-01 | D49: Ложка Фолькмана | E49: Остатки по договору | L49: 0 | O49: 0 | Q49: шт. | R49: t
C50: 2018-08-01 | D50: Марля (нестр.) | E50: Остатки по договору | L50: 0 | O50: 0 | Q50: м. | R50: Расходники
C51: 2018-08-01 | D51: Марля (нестр.) | E51: Остатки по договору | L51: 0 | O51: 0 | Q51: м. | R51: t
C52: 2018-08-01 | D52: Маска медицинская трёхслойная, одноразовая | E52: Остатки по договору | L52: 0 | O52: 0 | Q52: шт. | R52: Расходники
C53: 2018-08-01 | D53: Маска медицинская трёхслойная, одноразовая | E53: Остатки по договору | L53: 0 | O53: 0 | Q53: шт. | R53: t
C54: 2018-08-01 | D54: Материал упаковочный для стерилизации: пакеты самоклеящиеся "СтериТ" (150ммХ250мм) | E54: Остатки по договору | L54: 0 | O54: 0 | Q54: шт. | R54: t
C55: 2018-08-01 | D55: МДГР (5 л.) | E55: Остатки по договору | L55: 0 | O55: 0 | Q55: шт. | R55: Дезсредства
C56: 2018-08-01 | D56: Мексидол (амп., 50 мг.- 2 мл., №10) | E56: Остатки по договору | L56: 0 | O56: 0 | Q56: амп. | R56: Медикаменты
C57: 2018-08-01 | D57: Мундштук картонный одноразовый | E57: Остатки по договору | L57: 0 | O57: 0 | Q57: шт. | R57: Расходники
C58: 2018-08-01 | D58: Набор оториноларинголога одноразовый, стерильный | E58: Остатки по договору | L58: 0 | O58: 0 | Q58: шт. | R58: t
C59: 2018-08-01 | D59: Напальчник медицинский (5 шт.) | E59: Остатки по договору | L59: 0 | O59: 0 | Q59: уп. | R59: t
C60: 2018-08-01 | D60: Натрия бромид (2%-200мл.) | E60: Остатки по договору | L60: 0 | O60: 0 | Q60: фл. | R60: Растворы
C61: 2018-08-01 | D61: Натрия бромид (2%-200мл.) | E61: Остатки по договору | L61: 0 | O61: 0 | Q61: фл. | R61: Растворы
C62: 2018-08-01 | D62: Натрия хлорид (амп., 0,9%, 10 мл., №10) | E62: Остатки по договору | L62: 0 | O62: 0 | Q62: уп. | R62: Медикаменты
C63: 2018-08-01 | D63: Натрия хлорид (фл., 0,9%, 250 мл.) | E63: Остатки по договору | L63: 0 | O63: 0 | Q63: фл. | R63: Медикаменты
C64: 2018-08-01 | D64: Натрия хлорид (фл., 0,9%, 250 мл.) | E64: Остатки по договору | L64: 0 | O64: 0 | Q64: фл. | R64: t
C65: 2018-08-01 | D65: Ножницы остроконечные, изогнутые (16,0 см.) | E65: Остатки по договору | L65: 0 | O65: 0 | Q65: шт. | R65: t
C66: 2018-08-01 | D66: Ножницы хирургические, тупоконечные (14,5 см.) | E66: Остатки по договору | L66: 0 | O66: 0 | Q66: шт. | R66: t
C67: 2018-08-01 | D67: Пакет для утилизации медицинских отходов (кл.Б, 330х300мм.) | E67: Остатки по договору | L67: 0 | O67: 0 | Q67: шт. | R67: t
C68: 2018-08-01 | D68: Пантогам (таб., 250 мг., №50) | E68: Остатки по договору | L68: 0 | O68: 0 | Q68: таб. | R68: Медикаменты
C69: 2018-08-01 | D69: Перчатки (нестер, латекс.) | E69: Остатки по договору | L69: 0 | O69: 0 | Q69: пар. | R69: Расходники
C70: 2018-08-01 | D70: Перчатки (нестер, латекс.) | E70: Остатки по договору | L70: 0 | O70: 0 | Q70: пар. | R70: t
C71: 2018-08-01 | D71: Перчатки (нестер, нитрил.) | E71: Остатки по договору | L71: 0 | O71: 0 | Q71: пар. | R71: t
C72: 2018-08-01 | D72: Пинцет (однораз., стер.) | E72: Остатки по договору | L72: 0 | O72: 0 | Q72: шт. | R72: t
C73: 2018-08-01 | D73: Пиридоксина гидрохлорид (амп., 5%, 1 мл., №10) | E73: Остатки по договору | L73: 0 | O73: 0 | Q73: амп. | R73: Медикаменты
C74: 2018-08-01 | D74: Пробирка вакуумная Cerebrum (4 мл., 50 шт.) | E74: Остатки по договору | L74: 0 | O74: 0 | Q74: шт. | R74: Расходники
C75: 2018-08-01 | D75: Пробирка вакуумная Cerebrum (6 мл., 50 шт.) | E75: Остатки по договору | L75: 0 | O75: 0 | Q75: шт. | R75: Расходники
C76: 2018-08-01 | D76: Проклин антисептик (1 л. с триггером, экспресс) | E76: Остатки по договору | L76: 0 | O76: 0 | Q76: л. | R76: Дезсредства
C77: 2018-08-01 | D77: Простыня (нест, 70х80 см., 200 шт.) | E77: Остатки по договору | L77: 0 | O77: 0 | Q77: рул. | R77: t
C78: 2018-08-01 | D78: Пульмикорт (суспензия для ингаляций 0,5 мг/мл, 2 мл., №20) | E78: Остатки по договору | L78: 0 | O78: 0 | Q78: уп. | R78: Медикаменты
C79: 2018-08-01 | D79: Салфетка (спанлейс, 30х40 см., 100 шт.) | E79: Остатки по договору | L79: 0 | O79: 0 | Q79: уп. | R79: t
C80: 2018-08-01 | D80: Салфетка (стер., 14х16 см., №10) | E80: Остатки по договору | L80: 0 | O80: 0 | Q80: уп. | R80: Расходники
C81: 2018-08-01 | D81: Салфетка (стер., 14х16 см., №10) | E81: Остатки по договору | L81: 0 | O81: 0 | Q81: уп. | R81: t
C82: 2018-08-01 | D82: Салфетка (стер., 5х5 см., №10) | E82: Остатки по договору | L82: 0 | O82: 0 | Q82: уп. | R82: Расходники
C83: 2018-08-01 | D83: Салфетка (стер., 5х5 см., №10) | E83: Остатки по договору | L83: 0 | O83: 0 | Q83: уп. | R83: t
C84: 2018-08-01 | D84: Салфетка марлевая стерильная (45х29 см.) | E84: Остатки по договору | L84: 0 | O84: 0 | Q84: уп. | R84: t
C85: 2018-08-01 | D85: Салфетка спиртовая (стер., 60х100 мм., 70%) | E85: Остатки по договору | L85: 0 | O85: 0 | Q85: шт. | R85: Расходники
C86: 2018-08-01 | D86: Салфетка спиртовая (стер., 60х100 мм., 70%) | E86: Остатки по договору | L86: 0 | O86: 0 | Q86: шт. | R86: t
C87: 2018-08-01 | D87: Септолит-Форте (1 л.) | E87: Остатки по договору | L87: 0 | O87: 0 | Q87: шт. | R87: Дезсредства
C88: 2018-08-01 | D88: Скальпель (однораз., хир., стер.) | E88: Остатки по договору | L88: 0 | O88: 0 | Q88: шт. | R88: t
C89: 2018-08-01 | D89: Спирт этиловый (70%) | E89: Остатки по договору | L89: 0 | O89: 0 | Q89: мл. | R89: Спирт
C90: 2018-08-01 | D90: Спирт этиловый (95%) | E90: Остатки по договору | L90: 0 | O90: 0 | Q90: мл. | R90: Спирт
C91: 2018-08-01 | D91: Термоиндикатор ФС-3 | E91: Остатки по договору | L91: 0 | O91: 0 | Q91: шт. | R91: t
C92: 2018-08-01 | D92: Термометр для холодильника | E92: Остатки по договору | L92: 0 | O92: 0 | Q92: шт. | R92: t
C93: 2018-08-01 | D93: Фенибут (таб., 250 мг., №20) | E93: Остатки по договору | L93: 0 | O93: 0 | Q93: таб. | R93: Медикаменты
C94: 2018-08-01 | D94: Халат хирургический стерильный, одноразовый | E94: Остатки по договору | L94: 0 | O94: 0 | Q94: уп | R94: t
C95: 2018-08-01 | D95: Хлоргексидин (0,05%, 100 мл.) | E95: Остатки по договору | L95: 0 | O95: 0 | Q95: фл. | R95: Медикаменты
C96: 2018-08-01 | D96: Хлоргексидин (0,05%, 100 мл.) | E96: Остатки по договору | L96: 0 | O96: 0 | Q96: шт. | R96: t
C97: 2018-08-01 | D97: Цетиризин (таб., 10 мг., № 10) | E97: Остатки по договору | L97: 0 | O97: 0 | Q97: таб. | R97: Медикаменты
C98: 2018-08-01 | D98: Цианокобаламин (амп., 0,5 мг./1 мл., 1 мл., №10) | E98: Остатки по договору | L98: 0 | O98: 0 | Q98: амп. | R98: Медикаменты
C99: 2018-08-01 | D99: Циннаризин (таб. 25 мг., №50) | E99: Остатки по договору | L99: 0 | O99: 0 | Q99: таб. | R99: Медикаменты
C100: 2018-08-01 | D100: Шовный материал хирургический (Этикон Эл-Эл-Си) | E100: Остатки по договору | L100: 0 | O100: 0 | Q100: уп | R100: t
C101: 2018-08-01 | D101: Шпатель (стер.) | E101: Остатки по договору | L101: 0 | O101: 0 | Q101: шт. | R101: Расходники
C102: 2018-08-01 | D102: Шпатель (стер.) | E102: Остатки по договору | L102: 0 | O102: 0 | Q102: шт. | R102: t
C103: 2018-08-01 | D103: Шприц (1 мл.) | E103: Остатки по договору | L103: 0 | O103: 0 | Q103: шт. | R103: Расходники
C104: 2018-08-01 | D104: Шприц (10 мл.) | E104: Остатки по договору | L104: 0 | O104: 0 | Q104: шт. | R104: Расходники
C105: 2018-08-01 | D105: Шприц (5 мл.) | E105: Остатки по договору | L105: 0 | O105: 0 | Q105: шт. | R105: Расходники
C106: 2018-08-01 | D106: Шприц многоразовый стеклянный (20 мл.) | E106: Остатки по договору | L106: 0 | O106: 0 | Q106: шт. | R106: t
C107: 2018-08-01 | D107: Электрод взрослый грудной для ЭКГ (D-20мм.) | E107: Остатки по договору | L107: 0 | O107: 0 | Q107: набор | R107: t
C108: 2018-08-02 | D108: Перчатки (нестер, латекс.) | E108: Операции со складом | F108: Склад | K108: 3 | L108: 2550 | N108: 50 | O108: 2500 | Q108: пар. | R108: Расходники
C109: 2018-08-02 | D109: Шприц (1 мл.) | E109: Операции со складом | F109: Склад | K109: 4 | L109: 4100 | N109: 200 | O109: 3900 | Q109: шт. | R109: Расходники
C110: 2018-08-02 | D110: Шприц (1 мл.) | E110: Операции со складом | F110: Склад | K110: 5 | L110: 3900 | N110: 100 | O110: 3800 | Q110: шт. | R110: Расходники
C111: 2018-08-02 | D111: Шприц (2 мл.) | E111: Операции со складом | F111: Склад | K111: 6 | L111: 1900 | N111: 200 | O111: 1700 | Q111: шт. | R111: Расходники
C112: 2018-08-06 | D112: Бинт (нест.) | E112: Операции со складом | F112: Склад | K112: 7 | L112: 69 | N112: 4 | O112: 65 | Q112: шт. | R112: Расходники
C113: 2018-08-06 | D113: Вата (нест. 250 гр.) | E113: Операции со складом | F113: Склад | K113: 7 | L113: 5500 | N113: 250 | O113: 5250 | Q113: гр. | R113: Расходники
C114: 2018-08-06 | D114: Перчатки (нестер, латекс.) | E114: Операции со складом | F114: Склад | K114: 7 | L114: 2500 | N114: 100 | O114: 2400 | Q114: пар. | R114: Расходники
C115: 2018-08-06 | D115: Салфетка (спанлейс, 30х40 см., 100 шт.) | E115: Операции со складом | F115: Склад | K115: 7 | L115: 95 | N115: 2 | O115: 93 | Q115: уп. | R115: Расходники
C116: 2018-08-06 | D116: Салфетка спиртовая (стер., 60х100 мм., 70%) | E116: Операции со складом | F116: Склад | K116: 7 | L116: 2000 | N116: 100 | O116: 1900 | Q116: шт. | R116: Расходники
C117: 2018-08-06 | D117: Спирт этиловый (70%) | E117: Операции со складом | F117: Склад | K117: 7 | L117: 900 | N117: 200 | O117: 700 | Q117: мл. | R117: Спирт
C118: 2018-08-06 | D118: БЦЖ-М | E118: Операции со складом | F118: Склад | K118: 8 | L118: 5 | N118: 5 | O118: 0 | Q118: комп. | R118: Вакцина
C119: 2018-08-06 | D119: Вода очищенна (200 мл.) | E119: Операции со складом | F119: Склад | K119: 8 | L119: 54 | N119: 2 | O119: 52 | Q119: фл. | R119: Растворы
C120: 2018-08-06 | D120: Перчатки (нестер, латекс.) | E120: Операции со складом | F120: Склад | K120: 8 | L120: 2400 | N120: 500 | O120: 1900 | Q120: пар. | R120: Расходники
C121: 2018-08-06 | D121: Салфетка (спанлейс, 30х40 см., 100 шт.) | E121: Операции со складом | F121: Склад | K121: 8 | L121: 93 | N121: 1 | O121: 92 | Q121: уп. | R121: Расходники
C122: 2018-08-06 | D122: Спирт этиловый (70%) | E122: Операции со складом | F122: Склад | K122: 8 | L122: 700 | N122: 300 | O122: 400 | Q122: мл. | R122: Спирт
C123: 2018-08-06 | D123: Шприц (1 мл.) | E123: Операции со складом | F123: Склад | K123: 8 | L123: 3800 | N123: 200 | O123: 3600 | Q123: шт. | R123: Расходники
C124: 2018-08-06 | D124: Шприц (2 мл.) | E124: Операции со складом | F124: Склад | K124: 8 | L124: 1700 | N124: 200 | O124: 1500 | Q124: шт. | R124: Расходники
C125: 2018-08-06 | D125: Салфетка спиртовая (стер., 60х100 мм., 70%) | E125: Операции со складом | F125: Склад | K125: 9 | L125: 1900 | N125: 100 | O125: 1800 | Q125: шт. | R125: Расходники
C126: 2018-08-06 | D126: Шпатель (стер.) | E126: Операции со складом | F126: Склад | K126: 9 | L126: 16200 | N126: 1000 | O126: 15200 | Q126: шт. | R126: Расходники
C127: 2018-08-06 | D127: Бинт (нест.) | E127: Операции со складом | F127: Склад | K127: 10 | L127: 65 | N127: 5 | O127: 60 | Q127: шт. | R127: Расходники
C128: 2018-08-06 | D128: Вода очищенна (200 мл.) | E128: Операции со складом | F128: Склад | K128: 10 | L128: 52 | N128: 2 | O128: 50 | Q128: фл. | R128: Растворы
C129: 2018-08-06 | D129: Спирт этиловый (70%) | E129: Операции со складом | F129: Склад | K129: 10 | L129: 400 | N129: 200 | O129: 200 | Q129: мл. | R129: Спирт
C130: 2018-08-06 | D130: Шприц (2 мл.) | E130: Операции со складом | F130: Склад | K130: 10 | L130: 1500 | N130: 100 | O130: 1400 | Q130: шт. | R130: Расходники
C131: 2018-08-06 | D131: Шприц (5 мл.) | E131: Операции со складом | F131: Склад | K131: 10 | L131: 2200 | N131: 100 | O131: 2100 | Q131: шт. | R131: Расходники
C132: 2018-08-06 | D132: Грудной сбор №4 | E132: Операции со складом | F132: Склад | K132: 11 | L132: 2 | N132: 2 | O132: 0 | Q132: уп. | R132: Медикаменты
C133: 2018-08-06 | D133: Калия йодит (2%-200 мл.) | E133: Операции со складом | F133: Склад | K133: 11 | L133: 1 | N133: 1 | O133: 0 | Q133: уп. | R133: Растворы
C134: 2018-08-06 | D134: Кальция хлорид (2%-200мл.) | E134: Операции со складом | F134: Склад | K134: 11 | L134: 1 | N134: 1 | O134: 0 | Q134: уп. | R134: Растворы
C135: 2018-08-06 | D135: Натрия бромид (2%-200мл.) | E135: Операции со складом | F135: Склад | K135: 11 | L135: 1 | N135: 1 | O135: 0 | Q135: уп. | R135: Растворы
C136: 2018-08-06 | D136: Калия перманганат (0,05) | E136: Операции со складом | F136: Склад | K136: 12 | L136: 10 | N136: 10 | O136: 0 | Q136: фл. | R136: Растворы
C137: 2018-08-06 | D137: Вода очищенна (200 мл.) | E137: Операции со складом | F137: Склад | K137: 13 | L137: 50 | N137: 2 | O137: 48 | Q137: фл. | R137: Растворы
C138: 2018-08-06 | D138: Люгоря (р-р, 100 мл.) | E138: Операции со складом | F138: Склад | K138: 13 | L138: 2 | N138: 1 | O138: 1 | Q138: уп. | R138: Растворы
C139: 2018-08-06 | D139: Натрия цитрат (р-р, 100 мл.) | E139: Операции со складом | F139: Склад | K139: 13 | L139: 6 | N139: 6 | O139: 0 | Q139: уп. | R139: Растворы
C140: 2018-08-06 | D140: Перчатки (нестер, латекс.) | E140: Операции со складом | F140: Склад | K140: 13 | L140: 1900 | N140: 1000 | O140: 900 | Q140: пар. | R140: Расходники
C141: 2018-08-06 | D141: Полотенце бумажное | E141: Операции со складом | F141: Склад | K141: 13 | L141: 110 | N141: 2 | O141: 108 | Q141: уп. | R141: Расходники
C142: 2018-08-06 | D142: Вода очищенна (200 мл.) | E142: Операции со складом | F142: Склад | K142: 14 | L142: 48 | N142: 2 | O142: 46 | Q142: фл. | R142: Растворы
C143: 2018-08-06 | D143: Кислота уксусная (р-р, 100 мл.) | E143: Операции со складом | F143: Склад | K143: 14 | L143: 1 | N143: 1 | O143: 0 | Q143: уп. | R143: Растворы
C144: 2018-08-06 | D144: Люгоря (р-р, 100 мл.) | E144: Операции со складом | F144: Склад | K144: 14 | L144: 1 | N144: 1 | O144: 0 | Q144: уп. | R144: Растворы
C145: 2018-08-06 | D145: Вода очищенна (200 мл.) | E145: Операции со складом | F145: Склад | K145: 15 | L145: 46 | N145: 2 | O145: 44 | Q145: фл. | R145: Растворы
C146: 2018-08-06 | D146: Перекись водорода (3%, 350 мл.) | E146: Операции со складом | F146: Склад | K146: 15 | L146: 4 | N146: 4 | O146: 0 | Q146: уп. | R146: Растворы
C147: 2018-08-06 | D147: Бинт (стер.) | E147: Операции со складом | F147: Склад | K147: 16 | L147: 81 | N147: 2 | O147: 79 | Q147: шт. | R147: Расходники
C148: 2018-08-06 | D148: Бонадерм-гель (100 мл.) | E148: Операции со складом | F148: Склад | K148: 16 | L148: 183 | N148: 1 | O148: 182 | Q148: шт. | R148: Дезсредства
C149: 2018-08-06 | D149: Вода очищенна (200 мл.) | E149: Операции со складом | F149: Склад | K149: 16 | L149: 44 | N149: 2 | O149: 42 | Q149: фл. | R149: Растворы
C150: 2018-08-06 | D150: МДГР (1 л.) | E150: Операции со складом | F150: Склад | K150: 16 | L150: 5 | N150: 1 | O150: 4 | Q150: л. | R150: Дезсредства
C151: 2018-08-06 | D151: Перчатки (нестер, латекс.) | E151: Операции со складом | F151: Склад | K151: 16 | L151: 900 | N151: 200 | O151: 700 | Q151: пар. | R151: Расходники
C152: 2018-08-06 | D152: Проклин антисептик (1 л. УМР) | E152: Операции со складом | F152: Склад | K152: 16 | L152: 112 | N152: 1 | O152: 111 | Q152: л. | R152: Дезсредства
C153: 2018-08-06 | D153: Фурацилин (р-р) | E153: Операции со складом | F153: Склад | K153: 16 | L153: 1 | N153: 1 | O153: 0 | Q153: фл. | R153: Растворы
C154: 2018-08-06 | D154: Шпатель (стер.) | E154: Операции со складом | F154: Склад | K154: 16 | L154: 15200 | N154: 400 | O154: 14800 | Q154: шт. | R154: Расходники
C155: 2018-08-06 | D155: Вода очищенна (200 мл.) | E155: Операции со складом | F155: Склад | K155: 17 | L155: 42 | N155: 2 | O155: 40 | Q155: фл. | R155: Растворы
C156: 2018-08-06 | D156: Перекись водорода (6%, 400 мл.) | E156: Операции со складом | F156: Склад | K156: 17 | L156: 8 | N156: 8 | O156: 0 | Q156: фл. | R156: Растворы
C157: 2018-08-06 | D157: Колларгол (р-р, 10 мл.) | E157: Операции со складом | F157: Склад | K157: 18 | L157: 1 | N157: 1 | O157: 0 | Q157: уп. | R157: Растворы
C158: 2018-08-06 | D158: Бонадерм-Ультра (50 мл., с распыляющей насадкой) | E158: Операции со складом | F158: Склад | K158: 19 | L158: 81 | N158: 1 | O158: 80 | Q158: шт. | R158: Дезсредства
C159: 2018-08-06 | D159: Перчатки (нестер, латекс.) | E159: Операции со складом | F159: Склад | K159: 19 | L159: 700 | N159: 100 | O159: 600 | Q159: пар. | R159: Расходники
C160: 2018-08-06 | D160: Салфетка (спанлейс, 30х40 см., 100 шт.) | E160: Операции со складом | F160: Склад | K160: 19 | L160: 92 | N160: 1 | O160: 91 | Q160: уп. | R160: Расходники
C161: 2018-08-06 | D161: Салфетка спиртовая (стер., 60х100 мм., 70%) | E161: Операции со складом | F161: Склад | K161: 19 | L161: 1800 | N161: 50 | O161: 1750 | Q161: шт. | R161: Расходники
C162: 2018-08-06 | D162: Шпатель (стер.) | E162: Операции со складом | F162: Склад | K162: 19 | L162: 14800 | N162: 1000 | O162: 13800 | Q162: шт. | R162: Расходники
C163: 2018-08-06 | D163: Вода очищенна (200 мл.) | E163: Операции со складом | F163: Склад | K163: 20 | L163: 40 | N163: 40 | O163: 0 | Q163: фл. | R163: Растворы
C164: 2018-08-06 | D164: МДГР (1 л.) | E164: Операции со складом | F164: Склад | K164: 21 | L164: 4 | N164: 1 | O164: 3 | Q164: л. | R164: Дезсредства
C165: 2018-08-06 | D165: Перчатки (нестер, латекс.) | E165: Операции со складом | F165: Склад | K165: 21 | L165: 600 | N165: 100 | O165: 500 | Q165: пар. | R165: Расходники
C166: 2018-08-08 | D166: Бонадерм - крем для рук восстанавливающий (100 мл.) | E166: Операции со складом | F166: Склад | K166: 22 | L166: 41 | N166: 1 | O166: 40 | Q166: шт. | R166: Расходники
C167: 2018-08-08 | D167: Бонадерм-гель (100 мл.) | E167: Операции со складом | F167: Склад | K167: 22 | L167: 182 | N167: 1 | O167: 181 | Q167: шт. | R167: Дезсредства
C168: 2018-08-08 | D168: Бонадерм-гель (100 мл.) | E168: Операции со складом | F168: Склад | K168: 23 | L168: 181 | N168: 1 | O168: 180 | Q168: шт. | R168: Дезсредства
C169: 2018-08-08 | D169: Салфетка спиртовая (стер., 60х100 мм., 70%) | E169: Операции со складом | F169: Склад | K169: 23 | L169: 1750 | N169: 200 | O169: 1550 | Q169: шт. | R169: Расходники
C170: 2018-08-08 | D170: АДС-М | E170: Операции со складом | F170: Склад | K170: 24 | L170: 280 | N170: 60 | O170: 220 | Q170: доз. | R170: Вакцина
C171: 2018-08-08 | D171: АКДС | E171: Операции со складом | F171: Склад | K171: 24 | L171: 300 | N171: 100 | O171: 200 | Q171: доз. | R171: Вакцина
C172: 2018-08-08 | D172: Бубо-кок | E172: Операции со складом | F172: Склад | K172: 24 | L172: 130 | N172: 30 | O172: 100 | Q172: доз. | R172: Вакцина
C173: 2018-08-08 | D173: Гепатит В | E173: Операции со складом | F173: Склад | K173: 24 | L173: 210 | N173: 60 | O173: 150 | Q173: доз. | R173: Вакцина
C174: 2018-08-08 | D174: Краснушная | E174: Операции со складом | F174: Склад | K174: 24 | L174: 200 | N174: 80 | O174: 120 | Q174: доз. | R174: Вакцина
C175: 2018-08-08 | D175: Паротитно-корьевая | E175: Операции со складом | F175: Склад | K175: 24 | L175: 110 | N175: 80 | O175: 30 | Q175: доз. | R175: Вакцина
C176: 2018-08-08 | D176: Превенар-13 | E176: Операции со складом | F176: Склад | K176: 24 | L176: 300 | N176: 100 | O176: 200 | Q176: доз. | R176: Вакцина
C177: 2018-08-10 | D177: Игла с визуальной камерой Vacuette (0,8х38 мм (21Gх1 ½), 100 шт.) | E177: Получено от поставщика | F177: Склад | L177: 0 | M177: 30 | O177: 30 | Q177: шт. | R177: Расходники
C178: 2018-08-10 | D178: Марля (нестр.) | E178: Получено от поставщика | F178: Склад | L178: 0 | M178: 38 | O178: 38 | Q178: м. | R178: Расходники
C179: 2018-08-10 | D179: Маска медицинская трёхслойная, одноразовая | E179: Получено от поставщика | F179: Склад | L179: 350 | M179: 500 | O179: 850 | Q179: шт. | R179: Расходники
C180: 2018-08-10 | D180: Перчатки (нестер, латекс.) | E180: Получено от поставщика | F180: Склад | L180: 500 | M180: 5650 | O180: 6150 | Q180: пар. | R180: Расходники
C181: 2018-08-10 | D181: Салфетка (стер., 5х5 см., №10) | E181: Получено от поставщика | F181: Склад | L181: 0 | M181: 110 | O181: 110 | Q181: уп. | R181: Расходники
C182: 2018-08-10 | D182: Салфетка спиртовая (стер., 60х100 мм., 70%) | E182: Получено от поставщика | F182: Склад | L182: 1550 | M182: 8000 | O182: 9550 | Q182: шт. | R182: Расходники
C183: 2018-08-10 | D183: Шприц (1 мл.) | E183: Получено от поставщика | F183: Склад | L183: 3600 | M183: 2400 | O183: 6000 | Q183: шт. | R183: Расходники
C184: 2018-08-10 | D184: Бонадерм-гель (100 мл.) | E184: Операции со складом | F184: Склад | K184: 25 | L184: 180 | N184: 1 | O184: 179 | Q184: шт. | R184: Дезсредства
C185: 2018-08-10 | D185: Перчатки (нестер, латекс.) | E185: Операции со складом | F185: Склад | K185: 25 | L185: 6150 | N185: 500 | O185: 5650 | Q185: пар. | R185: Расходники
C186: 2018-08-10 | D186: Шприц (1 мл.) | E186: Операции со складом | F186: Склад | K186: 25 | L186: 6000 | N186: 400 | O186: 5600 | Q186: шт. | R186: Расходники
C187: 2018-08-10 | D187: Бинт (нест.) | E187: Операции со складом | F187: Склад | K187: 26 | L187: 60 | N187: 5 | O187: 55 | Q187: шт. | R187: Расходники
C188: 2018-08-10 | D188: Перчатки (нестер, латекс.) | E188: Операции со складом | F188: Склад | K188: 26 | L188: 5650 | N188: 500 | O188: 5150 | Q188: пар. | R188: Расходники
C189: 2018-08-10 | D189: Шприц (10 мл.) | E189: Операции со складом | F189: Склад | K189: 26 | L189: 900 | N189: 100 | O189: 800 | Q189: шт. | R189: Расходники
C190: 2018-08-10 | D190: Кавинтон (амп., 10 мг., 2 мл., №10) | E190: Операции со складом | F190: ДС | K190: 27 | L190: 20 | N190: 10 | O190: 10 | Q190: амп. | R190: Медикаменты (ДС)
C191: 2018-08-10 | D191: Бонадерм - крем для рук восстанавливающий (100 мл.) | E191: Операции со складом | F191: Склад | K191: 28 | L191: 40 | N191: 1 | O191: 39 | Q191: шт. | R191: Расходники
C192: 2018-08-10 | D192: Бонадерм-гель (100 мл.) | E192: Операции со складом | F192: Склад | K192: 28 | L192: 179 | N192: 1 | O192: 178 | Q192: шт. | R192: Дезсредства
C193: 2018-08-10 | D193: Бонадерм-ИП салфетки (100 шт.) | E193: Операции со складом | F193: Склад | K193: 28 | L193: 80 | N193: 10 | O193: 70 | Q193: уп. | R193: Дезсредства
C194: 2018-08-10 | D194: Перчатки (нестер, латекс.) | E194: Операции со складом | F194: Склад | K194: 28 | L194: 5150 | N194: 50 | O194: 5100 | Q194: пар. | R194: Расходники
C195: 2018-08-10 | D195: Салфетка (спанлейс, 30х40 см., 100 шт.) | E195: Операции со складом | F195: Склад | K195: 28 | L195: 91 | N195: 1 | O195: 90 | Q195: шт. | R195: Расходники
C196: 2018-08-10 | D196: Спирт этиловый (70%) | E196: Операции со складом | F196: Склад | K196: 28 | L196: 200 | N196: 200 | O196: 0 | Q196: мл. | R196: Спирт
C197: 2018-08-13 | D197: Бинт (нест.) | E197: Операции со складом | F197: Склад | K197: 29 | L197: 55 | N197: 5 | O197: 50 | Q197: шт. | R197: Расходники
C198: 2018-08-13 | D198: Перчатки (нестер, латекс.) | E198: Операции со складом | F198: Склад | K198: 29 | L198: 5100 | N198: 150 | O198: 4950 | Q198: пар. | R198: Расходники
C199: 2018-08-13 | D199: Салфетка (стер., 14х16 см., №10) | E199: Операции со складом | F199: Склад | K199: 29 | L199: 100 | N199: 5 | O199: 95 | Q199: уп. | R199: Расходники
C200: 2018-08-13 | D200: Шпатель (стер.) | E200: Операции со складом | F200: Склад | K200: 29 | L200: 13800 | N200: 500 | O200: 13300 | Q200: шт. | R200: Расходники
C201: 2018-08-13 | D201: Маска медицинская трёхслойная, одноразовая | E201: Операции со складом | F201: Склад | K201: 30 | L201: 850 | N201: 50 | O201: 800 | Q201: шт. | R201: Расходники
... 404 more rows

Sheet Медикаменты
I1: Место | J1: Группы накладных | K1: Наименование | L1: Движение | M1: Номер | N1: Единицы измерения | Q1: Вакцина | R1: =--Q2 -> 2018-08-01 | V1: Вакцина
I2: Склад | J2: Медикаменты | K2: Адреналин гидрохлорид (р-р, 0,1%, 1 мл.) | L2: =SUMIFS(Главная_tb[Расход],Главная_tb[Наименование],Медикаменты!$K2,Главная_tb[Место],Медикаменты!$I2,Главная_tb[Дата],">="&$R$1,Главная_tb[Дата],"<="&$R$2) -> 0 | M2: =IF(Медикаменты!$L2=0,0,COUNTIFS($J$2:J2,Медикаменты!$J2,$L$2:L2,">"&0)) -> 0 | N2: уп. | Q2: Август 2018 | R2: =EOMONTH(R1,0) -> 2018-08-31 | V2: Дезсредства
I3: Склад | J3: Вакцина | K3: АДС | L3: =SUMIFS(Главная_tb[Расход],Главная_tb[Наименование],Медикаменты!$K3,Главная_tb[Место],Медикаменты!$I3,Главная_tb[Дата],">="&$R$1,Главная_tb[Дата],"<="&$R$2) -> 0 | M3: =IF(Медикаменты!$L3=0,0,COUNTIFS($J$2:J3,Медикаменты!$J3,$L$2:L3,">"&0)) -> 0 | N3: доз. | T3: Август 2018 | V3: Медикаменты
I4: Склад | J4: Вакцина | K4: АДС-М | L4: =SUMIFS(Главная_tb[Расход],Главная_tb[Наименование],Медикаменты!$K4,Главная_tb[Место],Медикаменты!$I4,Главная_tb[Дата],">="&$R$1,Главная_tb[Дата],"<="&$R$2) -> 140 | M4: =IF(Медикаменты!$L4=0,0,COUNTIFS($J$2:J4,Медикаменты!$J4,$L$2:L4,">"&0)) -> 1 | N4: доз. | T4: Сентябрь 2018 | V4: Медикаменты (ДС)
I5: ДС | J5: Медикаменты (ДС) | K5: Азитромицин (таб., 125 мг, №6) | L5: =SUMIFS(Главная_tb[Расход],Главная_tb[Наименование],Медикаменты!$K5,Главная_tb[Место],Медикаменты!$I5,Главная_tb[Дата],">="&$R$1,Главная_tb[Дата],"<="&$R$2) -> 0 | M5: =IF(Медикаменты!$L5=0,0,COUNTIFS($J$2:J5,Медикаменты!$J5,$L$2:L5,">"&0)) -> 0 | N5: таб. | V5: Растворы
I6: Склад | J6: Расходники | K6: Азопирам реактив | L6: =SUMIFS(Главная_tb[Расход],Главная_tb[Наименование],Медикаменты!$K6,Главная_tb[Место],Медикаменты!$I6,Главная_tb[Дата],">="&$R$1,Главная_tb[Дата],"<="&$R$2) -> 0 | M6: =IF(Медикаменты!$L6=0,0,COUNTIFS($J$2:J6,Медикаменты!$J6,$L$2:L6,">"&0)) -> 0 | N6: уп. | V6: Расходники
I7: Склад | J7: Вакцина | K7: АКДС | L7: =SUMIFS(Главная_tb[Расход],Главная_tb[Наименование],Медикаменты!$K7,Главная_tb[Место],Медикаменты!$I7,Главная_tb[Дата],">="&$R$1,Главная_tb[Дата],"<="&$R$2) -> 300 | M7: =IF(Медикаменты!$L7=0,0,COUNTIFS($J$2:J7,Медикаменты!$J7,$L$2:L7,">"&0)) -> 2 | N7: доз. | V7: Спирт
I8: Склад | J8: Вакцина | K8: АКДС-Гепатит В | L8: =SUMIFS(Главная_tb[Расход],Главная_tb[Наименование],Медикаменты!$K8,Главная_tb[Место],Медикаменты!$I8,Главная_tb[Дата],">="&$R$1,Главная_tb[Дата],"<="&$R$2) -> 0 | M8: =IF(Медикаменты!$L8=0,0,COUNTIFS($J$2:J8,Медикаменты!$J8,$L$2:L8,">"&0)) -> 0 | N8: доз.
I9: ДС | J9: Медикаменты (ДС) | K9: Актовегин (р-р, 5 мл., №5) | L9: =SUMIFS(Главная_tb[Расход],Главная_tb[Наименование],Медикаменты!$K9,Главная_tb[Место],Медикаменты!$I9,Главная_tb[Дата],">="&$R$1,Главная_tb[Дата],"<="&$R$2) -> 0 | M9: =IF(Медикаменты!$L9=0,0,COUNTIFS($J$2:J9,Медикаменты!$J9,$L$2:L9,">"&0)) -> 0 | N9: амп.
I10: Склад | J10: Вакцина | K10: АКТ-Хиб | L10: =SUMIFS(Главная_tb[Расход],Главная_tb[Наименование],Медикаменты!$K10,Главная_tb[Место],Медикаменты!$I10,Главная_tb[Дата],">="&$R$1,Главная_tb[Дата],"<="&$R$2) -> 0 | M10: =IF(Медикаменты!$L10=0,0,COUNTIFS($J$2:J10,Медикаменты!$J10,$L$2:L10,">"&0)) -> 0 | N10: доз.
I11: Склад | J11: Аллергены | K11: Аллерген из библиотечной пыли для диагностики | L11: =SUMIFS(Главная_tb[Расход],Главная_tb[Наименование],Медикаменты!$K11,Главная_tb[Место],Медикаменты!$I11,Главная_tb[Дата],">="&$R$1,Главная_tb[Дата],"<="&$R$2) -> 0 | M11: =IF(Медикаменты!$L11=0,0,COUNTIFS($J$2:J11,Медикаменты!$J11,$L$2:L11,">"&0)) -> 0 | N11: копл.
I12: Склад | J12: Аллергены | K12: Аллерген из дафнии для диагностики | L12: =SUMIFS(Главная_tb[Расход],Главная_tb[Наименование],Медикаменты!$K12,Главная_tb[Место],Медикаменты!$I12,Главная_tb[Дата],">="&$R$1,Главная_tb[Дата],"<="&$R$2) -> 0 | M12: =IF(Медикаменты!$L12=0,0,COUNTIFS($J$2:J12,Медикаменты!$J12,$L$2:L12,">"&0)) -> 0 | N12: копл.
I13: Склад | J13: Аллергены | K13: Аллерген из домашней пыли для диагностики | L13: =SUMIFS(Главная_tb[Расход],Главная_tb[Наименование],Медикаменты!$K13,Главная_tb[Место],Медикаменты!$I13,Главная_tb[Дата],">="&$R$1,Главная_tb[Дата],"<="&$R$2) -> 0 | M13: =IF(Медикаменты!$L13=0,0,COUNTIFS($J$2:J13,Медикаменты!$J13,$L$2:L13,">"&0)) -> 0 | N13: копл.
I14: Склад | J14: Аллергены | K14: Аллерген из клеща Dermatophagoides pteronissinus для диагностики и лечения | L14: =SUMIFS(Главная_tb[Расход],Главная_tb[Наименование],Медикаменты!$K14,Главная_tb[Место],Медикаменты!$I14,Главная_tb[Дата],">="&$R$1,Главная_tb[Дата],"<="&$R$2) -> 0 | M14: =IF(Медикаменты!$L14=0,0,COUNTIFS($J$2:J14,Медикаменты!$J14,$L$2:L14,">"&0)) -> 0 | N14: копл.
I15: Склад | J15: Аллергены | K15: Аллерген из пера подушек для диагностики и лечения | L15: =SUMIFS(Главная_tb[Расход],Главная_tb[Наименование],Медикаменты!$K15,Главная_tb[Место],Медикаменты!$I15,Главная_tb[Дата],">="&$R$1,Главная_tb[Дата],"<="&$R$2) -> 0 | M15: =IF(Медикаменты!$L15=0,0,COUNTIFS($J$2:J15,Медикаменты!$J15,$L$2:L15,">"&0)) -> 0 | N15: копл.
I16: Склад | J16: Аллергены | K16: Аллерген из перхоти лошади для диагностики | L16: =SUMIFS(Главная_tb[Расход],Главная_tb[Наименование],Медикаменты!$K16,Главная_tb[Место],Медикаменты!$I16,Главная_tb[Дата],">="&$R$1,Главная_tb[Дата],"<="&$R$2) -> 0 | M16: =IF(Медикаменты!$L16=0,0,COUNTIFS($J$2:J16,Медикаменты!$J16,$L$2:L16,">"&0)) -> 0 | N16: копл.
I17: Склад | J17: Аллергены | K17: Аллерген из пыльцы березы висячей для диагностики и лечения | L17: =SUMIFS(Главная_tb[Расход],Главная_tb[Наименование],Медикаменты!$K17,Главная_tb[Место],Медикаменты!$I17,Главная_tb[Дата],">="&$R$1,Главная_tb[Дата],"<="&$R$2) -> 0 | M17: =IF(Медикаменты!$L17=0,0,COUNTIFS($J$2:J17,Медикаменты!$J17,$L$2:L17,">"&0)) -> 0 | N17: копл.
I18: Склад | J18: Аллергены | K18: Аллерген из пыльцы клена ясенелистного для диагностики и лечения | L18: =SUMIFS(Главная_tb[Расход],Главная_tb[Наименование],Медикаменты!$K18,Главная_tb[Место],Медикаменты!$I18,Главная_tb[Дата],">="&$R$1,Главная_tb[Дата],"<="&$R$2) -> 0 | M18: =IF(Медикаменты!$L18=0,0,COUNTIFS($J$2:J18,Медикаменты!$J18,$L$2:L18,">"&0)) -> 0 | N18: копл.
I19: Склад | J19: Аллергены | K19: Аллерген из пыльцы лебеды татарской для диагностики и лечения | L19: =SUMIFS(Главная_tb[Расход],Главная_tb[Наименование],Медикаменты!$K19,Главная_tb[Место],Медикаменты!$I19,Главная_tb[Дата],">="&$R$1,Главная_tb[Дата],"<="&$R$2) -> 0 | M19: =IF(Медикаменты!$L19=0,0,COUNTIFS($J$2:J19,Медикаменты!$J19,$L$2:L19,">"&0)) -> 0 | N19: копл.
I20: Склад | J20: Аллергены | K20: Аллерген из пыльцы луговых трав для диагностики и лечения | L20: =SUMIFS(Главная_tb[Расход],Главная_tb[Наименование],Медикаменты!$K20,Главная_tb[Место],Медикаменты!$I20,Главная_tb[Дата],">="&$R$1,Главная_tb[Дата],"<="&$R$2) -> 0 | M20: =IF(Медикаменты!$L20=0,0,COUNTIFS($J$2:J20,Медикаменты!$J20,$L$2:L20,">"&0)) -> 0 | N20: копл.
I21: Склад | J21: Аллергены | K21: Аллерген из пыльцы одуванчика лекарственного для диагностики и лечения | L21: =SUMIFS(Главная_tb[Расход],Главная_tb[Наименование],Медикаменты!$K21,Главная_tb[Место],Медикаменты!$I21,Главная_tb[Дата],">="&$R$1,Главная_tb[Дата],"<="&$R$2) -> 0 | M21: =IF(Медикаменты!$L21=0,0,COUNTIFS($J$2:J21,Медикаменты!$J21,$L$2:L21,">"&0)) -> 0 | N21: копл.
I22: Склад | J22: Аллергены | K22: Аллерген из пыльцы полыни горькой для диагностики и лечения | L22: =SUMIFS(Главная_tb[Расход],Главная_tb[Наименование],Медикаменты!$K22,Главная_tb[Место],Медикаменты!$I22,Главная_tb[Дата],">="&$R$1,Главная_tb[Дата],"<="&$R$2) -> 0 | M22: =IF(Медикаменты!$L22=0,0,COUNTIFS($J$2:J22,Медикаменты!$J22,$L$2:L22,">"&0)) -> 0 | N22: копл.
I23: Склад | J23: Аллергены | K23: Аллерген эпидермальный из шерсти кошки для диагностики | L23: =SUMIFS(Главная_tb[Расход],Главная_tb[Наименование],Медикаменты!$K23,Главная_tb[Место],Медикаменты!$I23,Главная_tb[Дата],">="&$R$1,Главная_tb[Дата],"<="&$R$2) -> 0 | M23: =IF(Медикаменты!$L23=0,0,COUNTIFS($J$2:J23,Медикаменты!$J23,$L$2:L23,">"&0)) -> 0 | N23: копл.
I24: Склад | J24: Аллергены | K24: Аллерген эпидермальный из шерсти собаки для диагностики | L24: =SUMIFS(Главная_tb[Расход],Главная_tb[Наименование],Медикаменты!$K24,Главная_tb[Место],Медикаменты!$I24,Главная_tb[Дата],">="&$R$1,Главная_tb[Дата],"<="&$R$2) -> 0 | M24: =IF(Медикаменты!$L24=0,0,COUNTIFS($J$2:J24,Медикаменты!$J24,$L$2:L24,">"&0)) -> 0 | N24: копл.
I25: Склад | J25: Вакцина | K25: Альгавак М | L25: =SUMIFS(Главная_tb[Расход],Главная_tb[Наименование],Медикаменты!$K25,Главная_tb[Место],Медикаменты!$I25,Главная_tb[Дата],">="&$R$1,Главная_tb[Дата],"<="&$R$2) -> 0 | M25: =IF(Медикаменты!$L25=0,0,COUNTIFS($J$2:J25,Медикаменты!$J25,$L$2:L25,">"&0)) -> 0 | N25: доз.
I26: Склад | J26: Медикаменты | K26: Амброксол (р-р, 7,5 мг./1 мл., 100 мл.) | L26: =SUMIFS(Главная_tb[Расход],Главная_tb[Наименование],Медикаменты!$K26,Главная_tb[Место],Медикаменты!$I26,Главная_tb[Дата],">="&$R$1,Главная_tb[Дата],"<="&$R$2) -> 5 | M26: =IF(Медикаменты!$L26=0,0,COUNTIFS($J$2:J26,Медикаменты!$J26,$L$2:L26,">"&0)) -> 1 | N26: фл.
I27: Склад | J27: Медикаменты | K27: Аммиака раствор (10%, 40 мл.) | L27: =SUMIFS(Главная_tb[Расход],Главная_tb[Наименование],Медикаменты!$K27,Главная_tb[Место],Медикаменты!$I27,Главная_tb[Дата],">="&$R$1,Главная_tb[Дата],"<="&$R$2) -> 0 | M27: =IF(Медикаменты!$L27=0,0,COUNTIFS($J$2:J27,Медикаменты!$J27,$L$2:L27,">"&0)) -> 0 | N27: фл.
I28: Склад | J28: Медикаменты | K28: Анальгин (р-р 500мг/мл, 2мл.№10) | L28: =SUMIFS(Главная_tb[Расход],Главная_tb[Наименование],Медикаменты!$K28,Главная_tb[Место],Медикаменты!$I28,Главная_tb[Дата],">="&$R$1,Главная_tb[Дата],"<="&$R$2) -> 0 | M28: =IF(Медикаменты!$L28=0,0,COUNTIFS($J$2:J28,Медикаменты!$J28,$L$2:L28,">"&0)) -> 0 | N28: уп.
I29: Склад | J29: Многоразовые расходники | K29: Баллон Политцера с оливами | L29: =SUMIFS(Главная_tb[Расход],Главная_tb[Наименование],Медикаменты!$K29,Главная_tb[Место],Медикаменты!$I29,Главная_tb[Дата],">="&$R$1,Главная_tb[Дата],"<="&$R$2) -> 0 | M29: =IF(Медикаменты!$L29=0,0,COUNTIFS($J$2:J29,Медикаменты!$J29,$L$2:L29,">"&0)) -> 0 | N29: набор
I30: Склад | J30: Расходники | K30: Берет медицинский (однораз.) | L30: =SUMIFS(Главная_tb[Расход],Главная_tb[Наименование],Медикаменты!$K30,Главная_tb[Место],Медикаменты!$I30,Главная_tb[Дата],">="&$R$1,Главная_tb[Дата],"<="&$R$2) -> 0 | M30: =IF(Медикаменты!$L30=0,0,COUNTIFS($J$2:J30,Медикаменты!$J30,$L$2:L30,">"&0)) -> 0 | N30: шт.
I31: Склад | J31: Медикаменты | K31: Беродуал (р-р флакон/кап. по 20 мл.) | L31: =SUMIFS(Главная_tb[Расход],Главная_tb[Наименование],Медикаменты!$K31,Главная_tb[Место],Медикаменты!$I31,Главная_tb[Дата],">="&$R$1,Главная_tb[Дата],"<="&$R$2) -> 5 | M31: =IF(Медикаменты!$L31=0,0,COUNTIFS($J$2:J31,Медикаменты!$J31,$L$2:L31,">"&0)) -> 2 | N31: фл.
I32: Склад | J32: Вакцина | K32: Би Вак полио | L32: =SUMIFS(Главная_tb[Расход],Главная_tb[Наименование],Медикаменты!$K32,Главная_tb[Место],Медикаменты!$I32,Главная_tb[Дата],">="&$R$1,Главная_tb[Дата],"<="&$R$2) -> 200 | M32: =IF(Медикаменты!$L32=0,0,COUNTIFS($J$2:J32,Медикаменты!$J32,$L$2:L32,">"&0)) -> 3 | N32: доз.
I33: Склад | J33: Расходники | K33: Бинт (нест.) | L33: =SUMIFS(Главная_tb[Расход],Главная_tb[Наименование],Медикаменты!$K33,Главная_tb[Место],Медикаменты!$I33,Главная_tb[Дата],">="&$R$1,Главная_tb[Дата],"<="&$R$2) -> 54 | M33: =IF(Медикаменты!$L33=0,0,COUNTIFS($J$2:J33,Медикаменты!$J33,$L$2:L33,">"&0)) -> 1 | N33: шт.
I34: Склад | J34: Расходники | K34: Бинт (стер.) | L34: =SUMIFS(Главная_tb[Расход],Главная_tb[Наименование],Медикаменты!$K34,Главная_tb[Место],Медикаменты!$I34,Главная_tb[Дата],">="&$R$1,Главная_tb[Дата],"<="&$R$2) -> 7 | M34: =IF(Медикаменты!$L34=0,0,COUNTIFS($J$2:J34,Медикаменты!$J34,$L$2:L34,">"&0)) -> 2 | N34: шт.
I35: Склад | J35: Расходники | K35: Бинт (фикс., 4 см х 4 м.) | L35: =SUMIFS(Главная_tb[Расход],Главная_tb[Наименование],Медикаменты!$K35,Главная_tb[Место],Медикаменты!$I35,Главная_tb[Дата],">="&$R$1,Главная_tb[Дата],"<="&$R$2) -> 0 | M35: =IF(Медикаменты!$L35=0,0,COUNTIFS($J$2:J35,Медикаменты!$J35,$L$2:L35,">"&0)) -> 0 | N35: шт.
I36: Склад | J36: Расходники | K36: Бинт (фикс., 6 см х 4 м.) | L36: =SUMIFS(Главная_tb[Расход],Главная_tb[Наименование],Медикаменты!$K36,Главная_tb[Место],Медикаменты!$I36,Главная_tb[Дата],">="&$R$1,Главная_tb[Дата],"<="&$R$2) -> 0 | M36: =IF(Медикаменты!$L36=0,0,COUNTIFS($J$2:J36,Медикаменты!$J36,$L$2:L36,">"&0)) -> 0 | N36: шт.
I37: Склад | J37: Вакцина | K37: Биолек-туберкулин | L37: =SUMIFS(Главная_tb[Расход],Главная_tb[Наименование],Медикаменты!$K37,Главная_tb[Место],Медикаменты!$I37,Главная_tb[Дата],">="&$R$1,Главная_tb[Дата],"<="&$R$2) -> 60 | M37: =IF(Медикаменты!$L37=0,0,COUNTIFS($J$2:J37,Медикаменты!$J37,$L$2:L37,">"&0)) -> 4 | N37: мл.
I38: Склад | J38: Расходники | K38: Бонадерм - крем для рук восстанавливающий (100 мл.) | L38: =SUMIFS(Главная_tb[Расход],Главная_tb[Наименование],Медикаменты!$K38,Главная_tb[Место],Медикаменты!$I38,Главная_tb[Дата],">="&$R$1,Главная_tb[Дата],"<="&$R$2) -> 3 | M38: =IF(Медикаменты!$L38=0,0,COUNTIFS($J$2:J38,Медикаменты!$J38,$L$2:L38,">"&0)) -> 3 | N38: шт.
I39: Склад | J39: Дезсредства | K39: Бонадерм-гель (100 мл.) | L39: =SUMIFS(Главная_tb[Расход],Главная_tb[Наименование],Медикаменты!$K39,Главная_tb[Место],Медикаменты!$I39,Главная_tb[Дата],">="&$R$1,Главная_tb[Дата],"<="&$R$2) -> 11 | M39: =IF(Медикаменты!$L39=0,0,COUNTIFS($J$2:J39,Медикаменты!$J39,$L$2:L39,">"&0)) -> 1 | N39: шт.
I40: Склад | J40: Дезсредства | K40: Бонадерм-ИП салфетки (100 шт.) | L40: =SUMIFS(Главная_tb[Расход],Главная_tb[Наименование],Медикаменты!$K40,Главная_tb[Место],Медикаменты!$I40,Главная_tb[Дата],">="&$R$1,Главная_tb[Дата],"<="&$R$2) -> 10 | M40: =IF(Медикаменты!$L40=0,0,COUNTIFS($J$2:J40,Медикаменты!$J40,$L$2:L40,">"&0)) -> 2 | N40: уп.
I41: Склад | J41: Дезсредства | K41: Бонадерм-Ультра (100 мл., с распыляющей насадкой) | L41: =SUMIFS(Главная_tb[Расход],Главная_tb[Наименование],Медикаменты!$K41,Главная_tb[Место],Медикаменты!$I41,Главная_tb[Дата],">="&$R$1,Главная_tb[Дата],"<="&$R$2) -> 2 | M41: =IF(Медикаменты!$L41=0,0,COUNTIFS($J$2:J41,Медикаменты!$J41,$L$2:L41,">"&0)) -> 3 | N41: шт.
I42: Склад | J42: Дезсредства | K42: Бонадерм-Ультра (50 мл., с распыляющей насадкой) | L42: =SUMIFS(Главная_tb[Расход],Главная_tb[Наименование],Медикаменты!$K42,Главная_tb[Место],Медикаменты!$I42,Главная_tb[Дата],">="&$R$1,Главная_tb[Дата],"<="&$R$2) -> 1 | M42: =IF(Медикаменты!$L42=0,0,COUNTIFS($J$2:J42,Медикаменты!$J42,$L$2:L42,">"&0)) -> 4 | N42: шт.
I43: Склад | J43: Дезсредства | K43: Бонацид (с распылителем, 0,5 л.) | L43: =SUMIFS(Главная_tb[Расход],Главная_tb[Наименование],Медикаменты!$K43,Главная_tb[Место],Медикаменты!$I43,Главная_tb[Дата],">="&$R$1,Главная_tb[Дата],"<="&$R$2) -> 0 | M43: =IF(Медикаменты!$L43=0,0,COUNTIFS($J$2:J43,Медикаменты!$J43,$L$2:L43,">"&0)) -> 0 | N43: л.
I44: Склад | J44: Медикаменты | K44: Бриллиантовый зелёный (р-р 1%, 25мл.№1) | L44: =SUMIFS(Главная_tb[Расход],Главная_tb[Наименование],Медикаменты!$K44,Главная_tb[Место],Медикаменты!$I44,Главная_tb[Дата],">="&$R$1,Главная_tb[Дата],"<="&$R$2) -> 0 | M44: =IF(Медикаменты!$L44=0,0,COUNTIFS($J$2:J44,Медикаменты!$J44,$L$2:L44,">"&0)) -> 0 | N44: фл.
I45: Склад | J45: Медикаменты | K45: Бриллиантовый зеленый (флак., 1%, 10 мл.) | L45: =SUMIFS(Главная_tb[Расход],Главная_tb[Наименование],Медикаменты!$K45,Главная_tb[Место],Медикаменты!$I45,Главная_tb[Дата],">="&$R$1,Главная_tb[Дата],"<="&$R$2) -> 0 | M45: =IF(Медикаменты!$L45=0,0,COUNTIFS($J$2:J45,Медикаменты!$J45,$L$2:L45,">"&0)) -> 0 | N45: фл.
I46: ДС | J46: Медикаменты (ДС) | K46: Бромгексин (таб., 4 мг., № 50) | L46: =SUMIFS(Главная_tb[Расход],Главная_tb[Наименование],Медикаменты!$K46,Главная_tb[Место],Медикаменты!$I46,Главная_tb[Дата],">="&$R$1,Главная_tb[Дата],"<="&$R$2) -> 50 | M46: =IF(Медикаменты!$L46=0,0,COUNTIFS($J$2:J46,Медикаменты!$J46,$L$2:L46,">"&0)) -> 1 | N46: таб.
I47: ДС | J47: Медикаменты (ДС) | K47: Бромгексин (таб., 8 мг., № 20) | L47: =SUMIFS(Главная_tb[Расход],Главная_tb[Наименование],Медикаменты!$K47,Главная_tb[Место],Медикаменты!$I47,Главная_tb[Дата],">="&$R$1,Главная_tb[Дата],"<="&$R$2) -> 0 | M47: =IF(Медикаменты!$L47=0,0,COUNTIFS($J$2:J47,Медикаменты!$J47,$L$2:L47,">"&0)) -> 0 | N47: таб.
I48: Склад | J48: Вакцина | K48: Бубо-кок | L48: =SUMIFS(Главная_tb[Расход],Главная_tb[Наименование],Медикаменты!$K48,Главная_tb[Место],Медикаменты!$I48,Главная_tb[Дата],">="&$R$1,Главная_tb[Дата],"<="&$R$2) -> 30 | M48: =IF(Медикаменты!$L48=0,0,COUNTIFS($J$2:J48,Медикаменты!$J48,$L$2:L48,">"&0)) -> 5 | N48: доз.
I49: Склад | J49: Расходники | K49: Бумага для спирографа Микролаб viasys (110*12*12) | L49: =SUMIFS(Главная_tb[Расход],Главная_tb[Наименование],Медикаменты!$K49,Главная_tb[Место],Медикаменты!$I49,Главная_tb[Дата],">="&$R$1,Главная_tb[Дата],"<="&$R$2) -> 3 | M49: =IF(Медикаменты!$L49=0,0,COUNTIFS($J$2:J49,Медикаменты!$J49,$L$2:L49,">"&0)) -> 4 | N49: уп.
I50: Склад | J50: Расходники | K50: Бумага УЗИ сканер (20 м.) | L50: =SUMIFS(Главная_tb[Расход],Главная_tb[Наименование],Медикаменты!$K50,Главная_tb[Место],Медикаменты!$I50,Главная_tb[Дата],">="&$R$1,Главная_tb[Дата],"<="&$R$2) -> 0 | M50: =IF(Медикаменты!$L50=0,0,COUNTIFS($J$2:J50,Медикаменты!$J50,$L$2:L50,">"&0)) -> 0 | N50: рул.
I51: Склад | J51: Расходники | K51: Бумага ЭКГ (110 мм. х 30 мм.) | L51: =SUMIFS(Главная_tb[Расход],Главная_tb[Наименование],Медикаменты!$K51,Главная_tb[Место],Медикаменты!$I51,Главная_tb[Дата],">="&$R$1,Главная_tb[Дата],"<="&$R$2) -> 0 | M51: =IF(Медикаменты!$L51=0,0,COUNTIFS($J$2:J51,Медикаменты!$J51,$L$2:L51,">"&0)) -> 0 | N51: рул.
I52: Склад | J52: Расходники | K52: Бумага ЭКГ (80 мм. х 70 мм., 300 л.) | L52: =SUMIFS(Главная_tb[Расход],Главная_tb[Наименование],Медикаменты!$K52,Главная_tb[Место],Медикаменты!$I52,Главная_tb[Дата],">="&$R$1,Главная_tb[Дата],"<="&$R$2) -> 0 | M52: =IF(Медикаменты!$L52=0,0,COUNTIFS($J$2:J52,Медикаменты!$J52,$L$2:L52,">"&0)) -> 0 | N52: уп.
I53: Склад | J53: Вакцина | K53: БЦЖ | L53: =SUMIFS(Главная_tb[Расход],Главная_tb[Наименование],Медикаменты!$K53,Главная_tb[Место],Медикаменты!$I53,Главная_tb[Дата],">="&$R$1,Главная_tb[Дата],"<="&$R$2) -> 5 | M53: =IF(Медикаменты!$L53=0,0,COUNTIFS($J$2:J53,Медикаменты!$J53,$L$2:L53,">"&0)) -> 6 | N53: копл.
I54: Склад | J54: Вакцина | K54: БЦЖ-М | L54: =SUMIFS(Главная_tb[Расход],Главная_tb[Наименование],Медикаменты!$K54,Главная_tb[Место],Медикаменты!$I54,Главная_tb[Дата],">="&$R$1,Главная_tb[Дата],"<="&$R$2) -> 10 | M54: =IF(Медикаменты!$L54=0,0,COUNTIFS($J$2:J54,Медикаменты!$J54,$L$2:L54,">"&0)) -> 7 | N54: копл.
I55: Склад | J55: Медикаменты | K55: Вазелин мазь (25 г.№1) | L55: =SUMIFS(Главная_tb[Расход],Главная_tb[Наименование],Медикаменты!$K55,Главная_tb[Место],Медикаменты!$I55,Главная_tb[Дата],">="&$R$1,Главная_tb[Дата],"<="&$R$2) -> 0 | M55: =IF(Медикаменты!$L55=0,0,COUNTIFS($J$2:J55,Медикаменты!$J55,$L$2:L55,">"&0)) -> 0 | N55: шт.
I56: Склад | J56: Медикаменты | K56: Вазелиновое масло (100 мл.) | L56: =SUMIFS(Главная_tb[Расход],Главная_tb[Наименование],Медикаменты!$K56,Главная_tb[Место],Медикаменты!$I56,Главная_tb[Дата],">="&$R$1,Главная_tb[Дата],"<="&$R$2) -> 0 | M56: =IF(Медикаменты!$L56=0,0,COUNTIFS($J$2:J56,Медикаменты!$J56,$L$2:L56,">"&0)) -> 0 | N56: шт.
I57: ДС | J57: Медикаменты (ДС) | K57: Валериана (20 мг., №50) | L57: =SUMIFS(Главная_tb[Расход],Главная_tb[Наименование],Медикаменты!$K57,Главная_tb[Место],Медикаменты!$I57,Главная_tb[Дата],">="&$R$1,Главная_tb[Дата],"<="&$R$2) -> 0 | M57: =IF(Медикаменты!$L57=0,0,COUNTIFS($J$2:J57,Медикаменты!$J57,$L$2:L57,">"&0)) -> 0 | N57: таб.
I58: Склад | J58: Медикаменты | K58: Валерианы настойка (25 мл.№1) | L58: =SUMIFS(Главная_tb[Расход],Главная_tb[Наименование],Медикаменты!$K58,Главная_tb[Место],Медикаменты!$I58,Главная_tb[Дата],">="&$R$1,Главная_tb[Дата],"<="&$R$2) -> 0 | M58: =IF(Медикаменты!$L58=0,0,COUNTIFS($J$2:J58,Медикаменты!$J58,$L$2:L58,">"&0)) -> 0 | N58: фл.
I59: Склад | J59: Расходники | K59: Вата (нест. 100 гр.) | L59: =SUMIFS(Главная_tb[Расход],Главная_tb[Наименование],Медикаменты!$K59,Главная_tb[Место],Медикаменты!$I59,Главная_tb[Дата],">="&$R$1,Главная_tb[Дата],"<="&$R$2) -> 0 | M59: =IF(Медикаменты!$L59=0,0,COUNTIFS($J$2:J59,Медикаменты!$J59,$L$2:L59,">"&0)) -> 0 | N59: гр.
I60: Склад | J60: Расходники | K60: Вата (нест. 250 гр.) | L60: =SUMIFS(Главная_tb[Расход],Главная_tb[Наименование],Медикаменты!$K60,Главная_tb[Место],Медикаменты!$I60,Главная_tb[Дата],">="&$R$1,Главная_tb[Дата],"<="&$R$2) -> 250 | M60: =IF(Медикаменты!$L60=0,0,COUNTIFS($J$2:J60,Медикаменты!$J60,$L$2:L60,">"&0)) -> 5 | N60: гр.
I61: Склад | J61: Расходники | K61: Вата (стер. 100 гр.) | L61: =SUMIFS(Главная_tb[Расход],Главная_tb[Наименование],Медикаменты!$K61,Главная_tb[Место],Медикаменты!$I61,Главная_tb[Дата],">="&$R$1,Главная_tb[Дата],"<="&$R$2) -> 0 | M61: =IF(Медикаменты!$L61=0,0,COUNTIFS($J$2:J61,Медикаменты!$J61,$L$2:L61,">"&0)) -> 0 | N61: гр.
I62: Склад | J62: Расходники | K62: Ватные палочки, ушные (100 шт.) | L62: =SUMIFS(Главная_tb[Расход],Главная_tb[Наименование],Медикаменты!$K62,Главная_tb[Место],Медикаменты!$I62,Главная_tb[Дата],">="&$R$1,Главная_tb[Дата],"<="&$R$2) -> 0 | M62: =IF(Медикаменты!$L62=0,0,COUNTIFS($J$2:J62,Медикаменты!$J62,$L$2:L62,">"&0)) -> 0 | N62: уп.
I63: Склад | J63: Расходники | K63: Ватные шарики (стер., №20) | L63: =SUMIFS(Главная_tb[Расход],Главная_tb[Наименование],Медикаменты!$K63,Главная_tb[Место],Медикаменты!$I63,Главная_tb[Дата],">="&$R$1,Главная_tb[Дата],"<="&$R$2) -> 0 | M63: =IF(Медикаменты!$L63=0,0,COUNTIFS($J$2:J63,Медикаменты!$J63,$L$2:L63,">"&0)) -> 0 | N63: уп.
I64: Склад | J64: Медикаменты | K64: Вентолин Небулы (амп., для ингаляций 1 мг/мл., 2,5 мл. № 20) | L64: =SUMIFS(Главная_tb[Расход],Главная_tb[Наименование],Медикаменты!$K64,Главная_tb[Место],Медикаменты!$I64,Главная_tb[Дата],">="&$R$1,Главная_tb[Дата],"<="&$R$2) -> 3 | M64: =IF(Медикаменты!$L64=0,0,COUNTIFS($J$2:J64,Медикаменты!$J64,$L$2:L64,">"&0)) -> 3 | N64: уп.
I65: ДС | J65: Медикаменты (ДС) | K65: Винпоцетин (таб., 5 мг., №50) | L65: =SUMIFS(Главная_tb[Расход],Главная_tb[Наименование],Медикаменты!$K65,Главная_tb[Место],Медикаменты!$I65,Главная_tb[Дата],">="&$R$1,Главная_tb[Дата],"<="&$R$2) -> 0 | M65: =IF(Медикаменты!$L65=0,0,COUNTIFS($J$2:J65,Медикаменты!$J65,$L$2:L65,">"&0)) -> 0 | N65: таб.
I66: ДС | J66: Медикаменты (ДС) | K66: Винпоцетин-АКОС (амп., 2 мл., №10) | L66: =SUMIFS(Главная_tb[Расход],Главная_tb[Наименование],Медикаменты!$K66,Главная_tb[Место],Медикаменты!$I66,Главная_tb[Дата],">="&$R$1,Главная_tb[Дата],"<="&$R$2) -> 0 | M66: =IF(Медикаменты!$L66=0,0,COUNTIFS($J$2:J66,Медикаменты!$J66,$L$2:L66,">"&0)) -> 0 | N66: амп.
I67: Склад | J67: Медикаменты | K67: Вода д/ин. (5 мл.№10) | L67: =SUMIFS(Главная_tb[Расход],Главная_tb[Наименование],Медикаменты!$K67,Главная_tb[Место],Медикаменты!$I67,Главная_tb[Дата],">="&$R$1,Главная_tb[Дата],"<="&$R$2) -> 0 | M67: =IF(Медикаменты!$L67=0,0,COUNTIFS($J$2:J67,Медикаменты!$J67,$L$2:L67,">"&0)) -> 0 | N67: уп.
I68: Склад | J68: Растворы | K68: Вода очищенна (200 мл.) | L68: =SUMIFS(Главная_tb[Расход],Главная_tb[Наименование],Медикаменты!$K68,Главная_tb[Место],Медикаменты!$I68,Главная_tb[Дата],">="&$R$1,Главная_tb[Дата],"<="&$R$2) -> 54 | M68: =IF(Медикаменты!$L68=0,0,COUNTIFS($J$2:J68,Медикаменты!$J68,$L$2:L68,">"&0)) -> 1 | N68: фл.
I69: Склад | J69: Многоразовые расходники | K69: Воронка ушная (1-4 мм.) | L69: =SUMIFS(Главная_tb[Расход],Главная_tb[Наименование],Медикаменты!$K69,Главная_tb[Место],Медикаменты!$I69,Главная_tb[Дата],">="&$R$1,Главная_tb[Дата],"<="&$R$2) -> 0 | M69: =IF(Медикаменты!$L69=0,0,COUNTIFS($J$2:J69,Медикаменты!$J69,$L$2:L69,">"&0)) -> 0 | N69: шт.
I70: Склад | J70: Многоразовые расходники | K70: Воронка ушная (2-5 мм.) | L70: =SUMIFS(Главная_tb[Расход],Главная_tb[Наименование],Медикаменты!$K70,Главная_tb[Место],Медикаменты!$I70,Главная_tb[Дата],">="&$R$1,Главная_tb[Дата],"<="&$R$2) -> 0 | M70: =IF(Медикаменты!$L70=0,0,COUNTIFS($J$2:J70,Медикаменты!$J70,$L$2:L70,">"&0)) -> 0 | N70: шт.
I71: Склад | J71: Расходники | K71: Гель для УЗИ (1 л.) | L71: =SUMIFS(Главная_tb[Расход],Главная_tb[Наименование],Медикаменты!$K71,Главная_tb[Место],Медикаменты!$I71,Главная_tb[Дата],">="&$R$1,Главная_tb[Дата],"<="&$R$2) -> 0 | M71: =IF(Медикаменты!$L71=0,0,COUNTIFS($J$2:J71,Медикаменты!$J71,$L$2:L71,">"&0)) -> 0 | N71: л.
I72: Склад | J72: Расходники | K72: Гель для УЗИ (5 л.) | L72: =SUMIFS(Главная_tb[Расход],Главная_tb[Наименование],Медикаменты!$K72,Главная_tb[Место],Медикаменты!$I72,Главная_tb[Дата],">="&$R$1,Главная_tb[Дата],"<="&$R$2) -> 0 | M72: =IF(Медикаменты!$L72=0,0,COUNTIFS($J$2:J72,Медикаменты!$J72,$L$2:L72,">"&0)) -> 0 | N72: л.
I73: Склад | J73: Вакцина | K73: Гепатит В | L73: =SUMIFS(Главная_tb[Расход],Главная_tb[Наименование],Медикаменты!$K73,Главная_tb[Место],Медикаменты!$I73,Главная_tb[Дата],">="&$R$1,Главная_tb[Дата],"<="&$R$2) -> 160 | M73: =IF(Медикаменты!$L73=0,0,COUNTIFS($J$2:J73,Медикаменты!$J73,$L$2:L73,">"&0)) -> 8 | N73: доз.
I74: ДС | J74: Медикаменты (ДС) | K74: Гипотиазид (таб., 25 мг., №20) | L74: =SUMIFS(Главная_tb[Расход],Главная_tb[Наименование],Медикаменты!$K74,Главная_tb[Место],Медикаменты!$I74,Главная_tb[Дата],">="&$R$1,Главная_tb[Дата],"<="&$R$2) -> 0 | M74: =IF(Медикаменты!$L74=0,0,COUNTIFS($J$2:J74,Медикаменты!$J74,$L$2:L74,">"&0)) -> 0 | N74: таб.
I75: Склад | J75: Аллергены | K75: Гистамин дигидрохлорид 0,1% раствор (аллерген) | L75: =SUMIFS(Главная_tb[Расход],Главная_tb[Наименование],Медикаменты!$K75,Главная_tb[Место],Медикаменты!$I75,Главная_tb[Дата],">="&$R$1,Главная_tb[Дата],"<="&$R$2) -> 0 | M75: =IF(Медикаменты!$L75=0,0,COUNTIFS($J$2:J75,Медикаменты!$J75,$L$2:L75,">"&0)) -> 0 | N75: копл.
I76: ДС | J76: Медикаменты (ДС) | K76: Глицин (таб., 100 мг., №50) | L76: =SUMIFS(Главная_tb[Расход],Главная_tb[Наименование],Медикаменты!$K76,Главная_tb[Место],Медикаменты!$I76,Главная_tb[Дата],">="&$R$1,Главная_tb[Дата],"<="&$R$2) -> 300 | M76: =IF(Медикаменты!$L76=0,0,COUNTIFS($J$2:J76,Медикаменты!$J76,$L$2:L76,">"&0)) -> 2 | N76: таб.
I77: Склад | J77: Вакцина | K77: Гриппол | L77: =SUMIFS(Главная_tb[Расход],Главная_tb[Наименование],Медикаменты!$K77,Главная_tb[Место],Медикаменты!$I77,Главная_tb[Дата],">="&$R$1,Главная_tb[Дата],"<="&$R$2) -> 0 | M77: =IF(Медикаменты!$L77=0,0,COUNTIFS($J$2:J77,Медикаменты!$J77,$L$2:L77,">"&0)) -> 0 | N77: доз.
I78: Склад | J78: Медикаменты | K78: Грудной сбор №4 | L78: =SUMIFS(Главная_tb[Расход],Главная_tb[Наименование],Медикаменты!$K78,Главная_tb[Место],Медикаменты!$I78,Главная_tb[Дата],">="&$R$1,Главная_tb[Дата],"<="&$R$2) -> 2 | M78: =IF(Медикаменты!$L78=0,0,COUNTIFS($J$2:J78,Медикаменты!$J78,$L$2:L78,">"&0)) -> 4 | N78: уп.
I79: Склад | J79: Расходники | K79: Губка гемостатическая коллагеновая (90х90 мм., №1) | L79: =SUMIFS(Главная_tb[Расход],Главная_tb[Наименование],Медикаменты!$K79,Главная_tb[Место],Медикаменты!$I79,Главная_tb[Дата],">="&$R$1,Главная_tb[Дата],"<="&$R$2) -> 0 | M79: =IF(Медикаменты!$L79=0,0,COUNTIFS($J$2:J79,Медикаменты!$J79,$L$2:L79,">"&0)) -> 0 | N79: уп.
I80: Склад | J80: Медикаменты | K80: Дексаметазон (р-р д/ин., 4мг/мл., 1 мл.№25) | L80: =SUMIFS(Главная_tb[Расход],Главная_tb[Наименование],Медикаменты!$K80,Главная_tb[Место],Медикаменты!$I80,Главная_tb[Дата],">="&$R$1,Главная_tb[Дата],"<="&$R$2) -> 0 | M80: =IF(Медикаменты!$L80=0,0,COUNTIFS($J$2:J80,Медикаменты!$J80,$L$2:L80,">"&0)) -> 0 | N80: уп.
I81: Склад | J81: Медикаменты | K81: Дексаметазон (сусп., 5 мл., №1) | L81: =SUMIFS(Главная_tb[Расход],Главная_tb[Наименование],Медикаменты!$K81,Главная_tb[Место],Медикаменты!$I81,Главная_tb[Дата],">="&$R$1,Главная_tb[Дата],"<="&$R$2) -> 0 | M81: =IF(Медикаменты!$L81=0,0,COUNTIFS($J$2:J81,Медикаменты!$J81,$L$2:L81,">"&0)) -> 0 | N81: уп.
I82: Склад | J82: Вакцина | K82: Диаскинтест | L82: =SUMIFS(Главная_tb[Расход],Главная_tb[Наименование],Медикаменты!$K82,Главная_tb[Место],Медикаменты!$I82,Главная_tb[Дата],">="&$R$1,Главная_tb[Дата],"<="&$R$2) -> 300 | M82: =IF(Медикаменты!$L82=0,0,COUNTIFS($J$2:J82,Медикаменты!$J82,$L$2:L82,">"&0)) -> 9 | N82: доз.
I83: ДС | J83: Медикаменты (ДС) | K83: Диклофенак (75 мг., №10) | L83: =SUMIFS(Главная_tb[Расход],Главная_tb[Наименование],Медикаменты!$K83,Главная_tb[Место],Медикаменты!$I83,Главная_tb[Дата],">="&$R$1,Главная_tb[Дата],"<="&$R$2) -> 0 | M83: =IF(Медикаменты!$L83=0,0,COUNTIFS($J$2:J83,Медикаменты!$J83,$L$2:L83,">"&0)) -> 0 | N83: таб.
I84: Склад | J84: Медикаменты | K84: Димексид (100 мл.) | L84: =SUMIFS(Главная_tb[Расход],Главная_tb[Наименование],Медикаменты!$K84,Главная_tb[Место],Медикаменты!$I84,Главная_tb[Дата],">="&$R$1,Главная_tb[Дата],"<="&$R$2) -> 0 | M84: =IF(Медикаменты!$L84=0,0,COUNTIFS($J$2:J84,Медикаменты!$J84,$L$2:L84,">"&0)) -> 0 | N84: фл.
I85: Склад | J85: Растворы | K85: Дисоль (р-р д/инф., 400 мл.) | L85: =SUMIFS(Главная_tb[Расход],Главная_tb[Наименование],Медикаменты!$K85,Главная_tb[Место],Медикаменты!$I85,Главная_tb[Дата],">="&$R$1,Главная_tb[Дата],"<="&$R$2) -> 0 | M85: =IF(Медикаменты!$L85=0,0,COUNTIFS($J$2:J85,Медикаменты!$J85,$L$2:L85,">"&0)) -> 0 | N85: фл.
I86: Склад | J86: Медикаменты | K86: Доксициклин (таб., 100 мг.) | L86: =SUMIFS(Главная_tb[Расход],Главная_tb[Наименование],Медикаменты!$K86,Главная_tb[Место],Медикаменты!$I86,Главная_tb[Дата],">="&$R$1,Главная_tb[Дата],"<="&$R$2) -> 0 | M86: =IF(Медикаменты!$L86=0,0,COUNTIFS($J$2:J86,Медикаменты!$J86,$L$2:L86,">"&0)) -> 0 | N86: таб.
I87: ДС | J87: Медикаменты (ДС) | K87: Дюфастон (таб., 10 мг., №20) | L87: =SUMIFS(Главная_tb[Расход],Главная_tb[Наименование],Медикаменты!$K87,Главная_tb[Место],Медикаменты!$I87,Главная_tb[Дата],">="&$R$1,Главная_tb[Дата],"<="&$R$2) -> 0 | M87: =IF(Медикаменты!$L87=0,0,COUNTIFS($J$2:J87,Медикаменты!$J87,$L$2:L87,">"&0)) -> 0 | N87: таб.
I88: Склад | J88: Расходники | K88: Зеркало гинекологическое "Куско" | L88: =SUMIFS(Главная_tb[Расход],Главная_tb[Наименование],Медикаменты!$K88,Главная_tb[Место],Медикаменты!$I88,Главная_tb[Дата],">="&$R$1,Главная_tb[Дата],"<="&$R$2) -> 100 | M88: =IF(Медикаменты!$L88=0,0,COUNTIFS($J$2:J88,Медикаменты!$J88,$L$2:L88,">"&0)) -> 6 | N88: шт.
I89: Склад | J89: Расходники | K89: Зонд урогенитальный (стер., однораз.) | L89: =SUMIFS(Главная_tb[Расход],Главная_tb[Наименование],Медикаменты!$K89,Главная_tb[Место],Медикаменты!$I89,Главная_tb[Дата],">="&$R$1,Главная_tb[Дата],"<="&$R$2) -> 0 | M89: =IF(Медикаменты!$L89=0,0,COUNTIFS($J$2:J89,Медикаменты!$J89,$L$2:L89,">"&0)) -> 0 | N89: шт.
I90: Склад | J90: Расходники | K90: Игла с визуальной камерой Vacuette (0,8х38 мм (21Gх1 ½), 100 шт.) | L90: =SUMIFS(Главная_tb[Расход],Главная_tb[Наименование],Медикаменты!$K90,Главная_tb[Место],Медикаменты!$I90,Главная_tb[Дата],">="&$R$1,Главная_tb[Дата],"<="&$R$2) -> 30 | M90: =IF(Медикаменты!$L90=0,0,COUNTIFS($J$2:J90,Медикаменты!$J90,$L$2:L90,">"&0)) -> 7 | N90: уп.
I91: Склад | J91: Медикаменты | K91: Йода р-р спиртовой (5 %,10 мл.№1) | L91: =SUMIFS(Главная_tb[Расход],Главная_tb[Наименование],Медикаменты!$K91,Главная_tb[Место],Медикаменты!$I91,Главная_tb[Дата],">="&$R$1,Главная_tb[Дата],"<="&$R$2) -> 0 | M91: =IF(Медикаменты!$L91=0,0,COUNTIFS($J$2:J91,Медикаменты!$J91,$L$2:L91,">"&0)) -> 0 | N91: фл.
I92: Склад | J92: Вакцина | K92: ИПВ-Имовакс полио | L92: =SUMIFS(Главная_tb[Расход],Главная_tb[Наименование],Медикаменты!$K92,Главная_tb[Место],Медикаменты!$I92,Главная_tb[Дата],">="&$R$1,Главная_tb[Дата],"<="&$R$2) -> 0 | M92: =IF(Медикаменты!$L92=0,0,COUNTIFS($J$2:J92,Медикаменты!$J92,$L$2:L92,">"&0)) -> 0 | N92: доз.
I93: Склад | J93: Вакцина | K93: ИПВ-полиорикс | L93: =SUMIFS(Главная_tb[Расход],Главная_tb[Наименование],Медикаменты!$K93,Главная_tb[Место],Медикаменты!$I93,Главная_tb[Дата],">="&$R$1,Главная_tb[Дата],"<="&$R$2) -> 0 | M93: =IF(Медикаменты!$L93=0,0,COUNTIFS($J$2:J93,Медикаменты!$J93,$L$2:L93,">"&0)) -> 0 | N93: доз.
I94: ДС | J94: Медикаменты (ДС) | K94: Кавинтон (амп., 10 мг., 2 мл., №10) | L94: =SUMIFS(Главная_tb[Расход],Главная_tb[Наименование],Медикаменты!$K94,Главная_tb[Место],Медикаменты!$I94,Главная_tb[Дата],">="&$R$1,Главная_tb[Дата],"<="&$R$2) -> 10 | M94: =IF(Медикаменты!$L94=0,0,COUNTIFS($J$2:J94,Медикаменты!$J94,$L$2:L94,">"&0)) -> 3 | N94: амп.
I95: ДС | J95: Медикаменты (ДС) | K95: Кавинтон (таб. 5 мг., №50) | L95: =SUMIFS(Главная_tb[Расход],Главная_tb[Наименование],Медикаменты!$K95,Главная_tb[Место],Медикаменты!$I95,Главная_tb[Дата],">="&$R$1,Главная_tb[Дата],"<="&$R$2) -> 0 | M95: =IF(Медикаменты!$L95=0,0,COUNTIFS($J$2:J95,Медикаменты!$J95,$L$2:L95,">"&0)) -> 0 | N95: таб.
I96: Склад | J96: Растворы | K96: Калия йодит (2%-200 мл.) | L96: =SUMIFS(Главная_tb[Расход],Главная_tb[Наименование],Медикаменты!$K96,Главная_tb[Место],Медикаменты!$I96,Главная_tb[Дата],">="&$R$1,Главная_tb[Дата],"<="&$R$2) -> 3 | M96: =IF(Медикаменты!$L96=0,0,COUNTIFS($J$2:J96,Медикаменты!$J96,$L$2:L96,">"&0)) -> 2 | N96: фл.
I97: Склад | J97: Растворы | K97: Калия перманганат (0,05) | L97: =SUMIFS(Главная_tb[Расход],Главная_tb[Наименование],Медикаменты!$K97,Главная_tb[Место],Медикаменты!$I97,Главная_tb[Дата],">="&$R$1,Главная_tb[Дата],"<="&$R$2) -> 10 | M97: =IF(Медикаменты!$L97=0,0,COUNTIFS($J$2:J97,Медикаменты!$J97,$L$2:L97,">"&0)) -> 3 | N97: фл.
I98: ДС | J98: Медикаменты (ДС) | K98: Кальция хлорид (10%, 5,0 №10) | L98: =SUMIFS(Главная_tb[Расход],Главная_tb[Наименование],Медикаменты!$K98,Главная_tb[Место],Медикаменты!$I98,Главная_tb[Дата],">="&$R$1,Главная_tb[Дата],"<="&$R$2) -> 30 | M98: =IF(Медикаменты!$L98=0,0,COUNTIFS($J$2:J98,Медикаменты!$J98,$L$2:L98,">"&0)) -> 4 | N98: амп.
I99: Склад | J99: Растворы | K99: Кальция хлорид (2%-200мл.) | L99: =SUMIFS(Главная_tb[Расход],Главная_tb[Наименование],Медикаменты!$K99,Главная_tb[Место],Медикаменты!$I99,Главная_tb[Дата],">="&$R$1,Главная_tb[Дата],"<="&$R$2) -> 3 | M99: =IF(Медикаменты!$L99=0,0,COUNTIFS($J$2:J99,Медикаменты!$J99,$L$2:L99,">"&0)) -> 4 | N99: фл.
I100: Склад | J100: Расходники | K100: Катетер урологический (женский, стер.) | L100: =SUMIFS(Главная_tb[Расход],Главная_tb[Наименование],Медикаменты!$K100,Главная_tb[Место],Медикаменты!$I100,Главная_tb[Дата],">="&$R$1,Главная_tb[Дата],"<="&$R$2) -> 0 | M100: =IF(Медикаменты!$L100=0,0,COUNTIFS($J$2:J100,Медикаменты!$J100,$L$2:L100,">"&0)) -> 0 | N100: шт.
I101: Склад | J101: Растворы | K101: Кислота уксусная (р-р, 100 мл.) | L101: =SUMIFS(Главная_tb[Расход],Главная_tb[Наименование],Медикаменты!$K101,Главная_tb[Место],Медикаменты!$I101,Главная_tb[Дата],">="&$R$1,Главная_tb[Дата],"<="&$R$2) -> 1 | M101: =IF(Медикаменты!$L101=0,0,COUNTIFS($J$2:J101,Медикаменты!$J101,$L$2:L101,">"&0)) -> 5 | N101: фл.
I102: Склад | J102: Вакцина | K102: Клещ Э вак | L102: =SUMIFS(Главная_tb[Расход],Главная_tb[Наименование],Медикаменты!$K102,Главная_tb[Место],Медикаменты!$I102,Главная_tb[Дата],">="&$R$1,Главная_tb[Дата],"<="&$R$2) -> 0 | M102: =IF(Медикаменты!$L102=0,0,COUNTIFS($J$2:J102,Медикаменты!$J102,$L$2:L102,">"&0)) -> 0 | N102: доз.
I103: Склад | J103: Растворы | K103: Колларгол (р-р, 10 мл.) | L103: =SUMIFS(Главная_tb[Расход],Главная_tb[Наименование],Медикаменты!$K103,Главная_tb[Место],Медикаменты!$I103,Главная_tb[Дата],">="&$R$1,Главная_tb[Дата],"<="&$R$2) -> 1 | M103: =IF(Медикаменты!$L103=0,0,COUNTIFS($J$2:J103,Медикаменты!$J103,$L$2:L103,">"&0)) -> 6 | N103: фл.
I104: Склад | J104: Расходники | K104: Контейнер для сбора кала (стер., 40 мл.) | L104: =SUMIFS(Главная_tb[Расход],Главная_tb[Наименование],Медикаменты!$K104,Главная_tb[Место],Медикаменты!$I104,Главная_tb[Дата],">="&$R$1,Главная_tb[Дата],"<="&$R$2) -> 0 | M104: =IF(Медикаменты!$L104=0,0,COUNTIFS($J$2:J104,Медикаменты!$J104,$L$2:L104,">"&0)) -> 0 | N104: шт.
I105: Склад | J105: Расходники | K105: Контейнер для сбора мочи (стер., 100 мл.) | L105: =SUMIFS(Главная_tb[Расход],Главная_tb[Наименование],Медикаменты!$K105,Главная_tb[Место],Медикаменты!$I105,Главная_tb[Дата],">="&$R$1,Главная_tb[Дата],"<="&$R$2) -> 0 | M105: =IF(Медикаменты!$L105=0,0,COUNTIFS($J$2:J105,Медикаменты!$J105,$L$2:L105,">"&0)) -> 0 | N105: шт.
I106: Склад | J106: Расходники | K106: Контейнер для утилизации отходов МК-01 (однораз., желтый, 0,25 л.) | L106: =SUMIFS(Главная_tb[Расход],Главная_tb[Наименование],Медикаменты!$K106,Главная_tb[Место],Медикаменты!$I106,Главная_tb[Дата],">="&$R$1,Главная_tb[Дата],"<="&$R$2) -> 0 | M106: =IF(Медикаменты!$L106=0,0,COUNTIFS($J$2:J106,Медикаменты!$J106,$L$2:L106,">"&0)) -> 0 | N106: шт.
I107: Склад | J107: Расходники | K107: Контейнер для утилизации отходов МК-01 (однораз., желтый, 0,5 л.) | L107: =SUMIFS(Главная_tb[Расход],Главная_tb[Наименование],Медикаменты!$K107,Главная_tb[Место],Медикаменты!$I107,Главная_tb[Дата],">="&$R$1,Главная_tb[Дата],"<="&$R$2) -> 0 | M107: =IF(Медикаменты!$L107=0,0,COUNTIFS($J$2:J107,Медикаменты!$J107,$L$2:L107,">"&0)) -> 0 | N107: шт.
I108: Склад | J108: Расходники | K108: Контейнер для утилизации отходов МК-01 (однораз., желтый, 3 л.) | L108: =SUMIFS(Главная_tb[Расход],Главная_tb[Наименование],Медикаменты!$K108,Главная_tb[Место],Медикаменты!$I108,Главная_tb[Дата],">="&$R$1,Главная_tb[Дата],"<="&$R$2) -> 0 | M108: =IF(Медикаменты!$L108=0,0,COUNTIFS($J$2:J108,Медикаменты!$J108,$L$2:L108,">"&0)) -> 0 | N108: шт.
I109: Склад | J109: Медикаменты | K109: Корвалол (флак., 25 мл.) | L109: =SUMIFS(Главная_tb[Расход],Главная_tb[Наименование],Медикаменты!$K109,Главная_tb[Место],Медикаменты!$I109,Главная_tb[Дата],">="&$R$1,Главная_tb[Дата],"<="&$R$2) -> 0 | M109: =IF(Медикаменты!$L109=0,0,COUNTIFS($J$2:J109,Медикаменты!$J109,$L$2:L109,">"&0)) -> 0 | N109: фл.
I110: ДС | J110: Медикаменты (ДС) | K110: Корвалол (флак., 25 мл.) | L110: =SUMIFS(Главная_tb[Расход],Главная_tb[Наименование],Медикаменты!$K110,Главная_tb[Место],Медикаменты!$I110,Главная_tb[Дата],">="&$R$1,Главная_tb[Дата],"<="&$R$2) -> 0 | M110: =IF(Медикаменты!$L110=0,0,COUNTIFS($J$2:J110,Медикаменты!$J110,$L$2:L110,">"&0)) -> 0 | N110: фл.
I111: Склад | J111: Вакцина | K111: Корьевая | L111: =SUMIFS(Главная_tb[Расход],Главная_tb[Наименование],Медикаменты!$K111,Главная_tb[Место],Медикаменты!$I111,Главная_tb[Дата],">="&$R$1,Главная_tb[Дата],"<="&$R$2) -> 0 | M111: =IF(Медикаменты!$L111=0,0,COUNTIFS($J$2:J111,Медикаменты!$J111,$L$2:L111,">"&0)) -> 0 | N111: доз.
I112: Склад | J112: Вакцина | K112: Краснушная | L112: =SUMIFS(Главная_tb[Расход],Главная_tb[Наименование],Медикаменты!$K112,Главная_tb[Место],Медикаменты!$I112,Главная_tb[Дата],">="&$R$1,Главная_tb[Дата],"<="&$R$2) -> 160 | M112: =IF(Медикаменты!$L112=0,0,COUNTIFS($J$2:J112,Медикаменты!$J112,$L$2:L112,">"&0)) -> 10 | N112: доз.
I113: Склад | J113: Расходники | K113: Крафт-пакеты (пакеты упаковочные для стерилизации СтериТ) | L113: =SUMIFS(Главная_tb[Расход],Главная_tb[Наименование],Медикаменты!$K113,Главная_tb[Место],Медикаменты!$I113,Главная_tb[Дата],">="&$R$1,Главная_tb[Дата],"<="&$R$2) -> 0 | M113: =IF(Медикаменты!$L113=0,0,COUNTIFS($J$2:J113,Медикаменты!$J113,$L$2:L113,">"&0)) -> 0 | N113: шт.
I114: Склад | J114: Медикаменты | K114: Лазикс (р-р 10мг/мл., 2мл.№10) | L114: =SUMIFS(Главная_tb[Расход],Главная_tb[Наименование],Медикаменты!$K114,Главная_tb[Место],Медикаменты!$I114,Главная_tb[Дата],">="&$R$1,Главная_tb[Дата],"<="&$R$2) -> 0 | M114: =IF(Медикаменты!$L114=0,0,COUNTIFS($J$2:J114,Медикаменты!$J114,$L$2:L114,">"&0)) -> 0 | N114: уп.
I115: Склад | J115: Расходники | K115: Лейкопластырь (бактер. 2,5х7,2 см.) | L115: =SUMIFS(Главная_tb[Расход],Главная_tb[Наименование],Медикаменты!$K115,Главная_tb[Место],Медикаменты!$I115,Главная_tb[Дата],">="&$R$1,Главная_tb[Дата],"<="&$R$2) -> 0 | M115: =IF(Медикаменты!$L115=0,0,COUNTIFS($J$2:J115,Медикаменты!$J115,$L$2:L115,">"&0)) -> 0 | N115: шт.
I116: Склад | J116: Расходники | K116: Лейкопластырь (катушка, 2х500 см.) | L116: =SUMIFS(Главная_tb[Расход],Главная_tb[Наименование],Медикаменты!$K116,Главная_tb[Место],Медикаменты!$I116,Главная_tb[Дата],">="&$R$1,Главная_tb[Дата],"<="&$R$2) -> 0 | M116: =IF(Медикаменты!$L116=0,0,COUNTIFS($J$2:J116,Медикаменты!$J116,$L$2:L116,">"&0)) -> 0 | N116: шт.
I117: Склад | J117: Расходники | K117: Лента диаграммная из термобумаги | L117: =SUMIFS(Главная_tb[Расход],Главная_tb[Наименование],Медикаменты!$K117,Главная_tb[Место],Медикаменты!$I117,Главная_tb[Дата],">="&$R$1,Главная_tb[Дата],"<="&$R$2) -> 0 | M117: =IF(Медикаменты!$L117=0,0,COUNTIFS($J$2:J117,Медикаменты!$J117,$L$2:L117,">"&0)) -> 0 | N117: шт.
I118: Склад | J118: Медикаменты | K118: Лидокаин (амп., 2%, №10) | L118: =SUMIFS(Главная_tb[Расход],Главная_tb[Наименование],Медикаменты!$K118,Главная_tb[Место],Медикаменты!$I118,Главная_tb[Дата],">="&$R$1,Главная_tb[Дата],"<="&$R$2) -> 0 | M118: =IF(Медикаменты!$L118=0,0,COUNTIFS($J$2:J118,Медикаменты!$J118,$L$2:L118,">"&0)) -> 0 | N118: уп.
I119: Склад | J119: Медикаменты | K119: Лидокаин (спрей, 10%, 38 гр. 650 доз) | L119: =SUMIFS(Главная_tb[Расход],Главная_tb[Наименование],Медикаменты!$K119,Главная_tb[Место],Медикаменты!$I119,Главная_tb[Дата],">="&$R$1,Главная_tb[Дата],"<="&$R$2) -> 0 | M119: =IF(Медикаменты!$L119=0,0,COUNTIFS($J$2:J119,Медикаменты!$J119,$L$2:L119,">"&0)) -> 0 | N119: уп.
I120: Склад | J120: Медикаменты | K120: Линкомицин (амп., 1 мл., №10) | L120: =SUMIFS(Главная_tb[Расход],Главная_tb[Наименование],Медикаменты!$K120,Главная_tb[Место],Медикаменты!$I120,Главная_tb[Дата],">="&$R$1,Главная_tb[Дата],"<="&$R$2) -> 0 | M120: =IF(Медикаменты!$L120=0,0,COUNTIFS($J$2:J120,Медикаменты!$J120,$L$2:L120,">"&0)) -> 0 | N120: уп.
I121: Склад | J121: Дезсредства | K121: Литосептин | L121: =SUMIFS(Главная_tb[Расход],Главная_tb[Наименование],Медикаменты!$K121,Главная_tb[Место],Медикаменты!$I121,Главная_tb[Дата],">="&$R$1,Главная_tb[Дата],"<="&$R$2) -> 0 | M121: =IF(Медикаменты!$L121=0,0,COUNTIFS($J$2:J121,Медикаменты!$J121,$L$2:L121,">"&0)) -> 0 | N121: л.
I122: Склад | J122: Расходники | K122: Ложка Фолькмана | L122: =SUMIFS(Главная_tb[Расход],Главная_tb[Наименование],Медикаменты!$K122,Главная_tb[Место],Медикаменты!$I122,Главная_tb[Дата],">="&$R$1,Главная_tb[Дата],"<="&$R$2) -> 100 | M122: =IF(Медикаменты!$L122=0,0,COUNTIFS($J$2:J122,Медикаменты!$J122,$L$2:L122,">"&0)) -> 8 | N122: шт.
I123: Склад | J123: Растворы | K123: Люгоря (р-р, 100 мл.) | L123: =SUMIFS(Главная_tb[Расход],Главная_tb[Наименование],Медикаменты!$K123,Главная_tb[Место],Медикаменты!$I123,Главная_tb[Дата],">="&$R$1,Главная_tb[Дата],"<="&$R$2) -> 2 | M123: =IF(Медикаменты!$L123=0,0,COUNTIFS($J$2:J123,Медикаменты!$J123,$L$2:L123,">"&0)) -> 7 | N123: фл.
I124: Склад | J124: Медикаменты | K124: Магния сульфат (р-р, 250 мг/мл., 10 мл.№10) | L124: =SUMIFS(Главная_tb[Расход],Главная_tb[Наименование],Медикаменты!$K124,Главная_tb[Место],Медикаменты!$I124,Главная_tb[Дата],">="&$R$1,Главная_tb[Дата],"<="&$R$2) -> 0 | M124: =IF(Медикаменты!$L124=0,0,COUNTIFS($J$2:J124,Медикаменты!$J124,$L$2:L124,">"&0)) -> 0 | N124: уп.
I125: Склад | J125: Медикаменты | K125: Мазь гидрокортизоновая (0,5%, 5 мл.) | L125: =SUMIFS(Главная_tb[Расход],Главная_tb[Наименование],Медикаменты!$K125,Главная_tb[Место],Медикаменты!$I125,Главная_tb[Дата],">="&$R$1,Главная_tb[Дата],"<="&$R$2) -> 0 | M125: =IF(Медикаменты!$L125=0,0,COUNTIFS($J$2:J125,Медикаменты!$J125,$L$2:L125,">"&0)) -> 0 | N125: уп.
I126: Склад | J126: Медикаменты | K126: Мазь левомеколь (40 гр.) | L126: =SUMIFS(Главная_tb[Расход],Главная_tb[Наименование],Медикаменты!$K126,Главная_tb[Место],Медикаменты!$I126,Главная_tb[Дата],">="&$R$1,Главная_tb[Дата],"<="&$R$2) -> 0 | M126: =IF(Медикаменты!$L126=0,0,COUNTIFS($J$2:J126,Медикаменты!$J126,$L$2:L126,">"&0)) -> 0 | N126: уп.
I127: Склад | J127: Медикаменты | K127: Мазь тетрациклиновая (10%, 25 гр.) | L127: =SUMIFS(Главная_tb[Расход],Главная_tb[Наименование],Медикаменты!$K127,Главная_tb[Место],Медикаменты!$I127,Главная_tb[Дата],">="&$R$1,Главная_tb[Дата],"<="&$R$2) -> 0 | M127: =IF(Медикаменты!$L127=0,0,COUNTIFS($J$2:J127,Медикаменты!$J127,$L$2:L127,">"&0)) -> 0 | N127: уп.
I128: Склад | J128: Расходники | K128: Марля (нестр.) | L128: =SUMIFS(Главная_tb[Расход],Главная_tb[Наименование],Медикаменты!$K128,Главная_tb[Место],Медикаменты!$I128,Главная_tb[Дата],">="&$R$1,Главная_tb[Дата],"<="&$R$2) -> 0 | M128: =IF(Медикаменты!$L128=0,0,COUNTIFS($J$2:J128,Медикаменты!$J128,$L$2:L128,">"&0)) -> 0 | N128: м.
I129: Склад | J129: Расходники | K129: Маска Лепесток 200 | L129: =SUMIFS(Главная_tb[Расход],Главная_tb[Наименование],Медикаменты!$K129,Главная_tb[Место],Медикаменты!$I129,Главная_tb[Дата],">="&$R$1,Главная_tb[Дата],"<="&$R$2) -> 0 | M129: =IF(Медикаменты!$L129=0,0,COUNTIFS($J$2:J129,Медикаменты!$J129,$L$2:L129,">"&0)) -> 0 | N129: шт.
I130: Склад | J130: Расходники | K130: Маска медицинская трёхслойная, одноразовая | L130: =SUMIFS(Главная_tb[Расход],Главная_tb[Наименование],Медикаменты!$K130,Главная_tb[Место],Медикаменты!$I130,Главная_tb[Дата],">="&$R$1,Главная_tb[Дата],"<="&$R$2) -> 500 | M130: =IF(Медикаменты!$L130=0,0,COUNTIFS($J$2:J130,Медикаменты!$J130,$L$2:L130,">"&0)) -> 9 | N130: шт.
I131: Склад | J131: Многоразовые расходники | K131: Массажные валики с подушкой | L131: =SUMIFS(Главная_tb[Расход],Главная_tb[Наименование],Медикаменты!$K131,Главная_tb[Место],Медикаменты!$I131,Главная_tb[Дата],">="&$R$1,Главная_tb[Дата],"<="&$R$2) -> 0 | M131: =IF(Медикаменты!$L131=0,0,COUNTIFS($J$2:J131,Медикаменты!$J131,$L$2:L131,">"&0)) -> 0 | N131: копл.
I132: Склад | J132: Дезсредства | K132: МДГР (1 л.) | L132: =SUMIFS(Главная_tb[Расход],Главная_tb[Наименование],Медикаменты!$K132,Главная_tb[Место],Медикаменты!$I132,Главная_tb[Дата],">="&$R$1,Главная_tb[Дата],"<="&$R$2) -> 3 | M132: =IF(Медикаменты!$L132=0,0,COUNTIFS($J$2:J132,Медикаменты!$J132,$L$2:L132,">"&0)) -> 5 | N132: л.
I133: Склад | J133: Дезсредства | K133: МДГР (5 л.) | L133: =SUMIFS(Главная_tb[Расход],Главная_tb[Наименование],Медикаменты!$K133,Главная_tb[Место],Медикаменты!$I133,Главная_tb[Дата],">="&$R$1,Главная_tb[Дата],"<="&$R$2) -> 0 | M133: =IF(Медикаменты!$L133=0,0,COUNTIFS($J$2:J133,Медикаменты!$J133,$L$2:L133,">"&0)) -> 0 | N133: л.
I134: ДС | J134: Медикаменты (ДС) | K134: Мексидол (амп., 50 мг.- 2 мл., №10) | L134: =SUMIFS(Главная_tb[Расход],Главная_tb[Наименование],Медикаменты!$K134,Главная_tb[Место],Медикаменты!$I134,Главная_tb[Дата],">="&$R$1,Главная_tb[Дата],"<="&$R$2) -> 0 | M134: =IF(Медикаменты!$L134=0,0,COUNTIFS($J$2:J134,Медикаменты!$J134,$L$2:L134,">"&0)) -> 0 | N134: амп.
I135: ДС | J135: Медикаменты (ДС) | K135: Мексидол (таб., 125 мг., №50) | L135: =SUMIFS(Главная_tb[Расход],Главная_tb[Наименование],Медикаменты!$K135,Главная_tb[Место],Медикаменты!$I135,Главная_tb[Дата],">="&$R$1,Главная_tb[Дата],"<="&$R$2) -> 0 | M135: =IF(Медикаменты!$L135=0,0,COUNTIFS($J$2:J135,Медикаменты!$J135,$L$2:L135,">"&0)) -> 0 | N135: таб.
I136: ДС | J136: Медикаменты (ДС) | K136: Метронидазол (таб., 0,2 мг., №10) | L136: =SUMIFS(Главная_tb[Расход],Главная_tb[Наименование],Медикаменты!$K136,Главная_tb[Место],Медикаменты!$I136,Главная_tb[Дата],">="&$R$1,Главная_tb[Дата],"<="&$R$2) -> 0 | M136: =IF(Медикаменты!$L136=0,0,COUNTIFS($J$2:J136,Медикаменты!$J136,$L$2:L136,">"&0)) -> 0 | N136: таб.
I137: Склад | J137: Расходники | K137: Мультипакет для паровой стерилизации (1000 шт.) | L137: =SUMIFS(Главная_tb[Расход],Главная_tb[Наименование],Медикаменты!$K137,Главная_tb[Место],Медикаменты!$I137,Главная_tb[Дата],">="&$R$1,Главная_tb[Дата],"<="&$R$2) -> 0 | M137: =IF(Медикаменты!$L137=0,0,COUNTIFS($J$2:J137,Медикаменты!$J137,$L$2:L137,">"&0)) -> 0 | N137: шт.
I138: Склад | J138: Расходники | K138: Мундштук картонный одноразовый | L138: =SUMIFS(Главная_tb[Расход],Главная_tb[Наименование],Медикаменты!$K138,Главная_tb[Место],Медикаменты!$I138,Главная_tb[Дата],">="&$R$1,Главная_tb[Дата],"<="&$R$2) -> 250 | M138: =IF(Медикаменты!$L138=0,0,COUNTIFS($J$2:J138,Медикаменты!$J138,$L$2:L138,">"&0)) -> 10 | N138: шт.
I139: ДС | J139: Медикаменты (ДС) | K139: Назорел (спрей, 50 мкг/1 доза, 120 доз, №1) | L139: =SUMIFS(Главная_tb[Расход],Главная_tb[Наименование],Медикаменты!$K139,Главная_tb[Место],Медикаменты!$I139,Главная_tb[Дата],">="&$R$1,Главная_tb[Дата],"<="&$R$2) -> 0 | M139: =IF(Медикаменты!$L139=0,0,COUNTIFS($J$2:J139,Медикаменты!$J139,$L$2:L139,">"&0)) -> 0 | N139: уп.
I140: Склад | J140: Расходники | K140: Наконечники для дозаторов 100-1000 мкл (480 шт.) | L140: =SUMIFS(Главная_tb[Расход],Главная_tb[Наименование],Медикаменты!$K140,Главная_tb[Место],Медикаменты!$I140,Главная_tb[Дата],">="&$R$1,Главная_tb[Дата],"<="&$R$2) -> 0 | M140: =IF(Медикаменты!$L140=0,0,COUNTIFS($J$2:J140,Медикаменты!$J140,$L$2:L140,">"&0)) -> 0 | N140: уп.
I141: Склад | J141: Расходники | K141: Наконечники для дозаторов 20-200 мкл (1000 шт.) | L141: =SUMIFS(Главная_tb[Расход],Главная_tb[Наименование],Медикаменты!$K141,Главная_tb[Место],Медикаменты!$I141,Главная_tb[Дата],">="&$R$1,Главная_tb[Дата],"<="&$R$2) -> 0 | M141: =IF(Медикаменты!$L141=0,0,COUNTIFS($J$2:J141,Медикаменты!$J141,$L$2:L141,">"&0)) -> 0 | N141: уп.
I142: Склад | J142: Расходники | K142: Напальчник (10 шт.) | L142: =SUMIFS(Главная_tb[Расход],Главная_tb[Наименование],Медикаменты!$K142,Главная_tb[Место],Медикаменты!$I142,Главная_tb[Дата],">="&$R$1,Главная_tb[Дата],"<="&$R$2) -> 0 | M142: =IF(Медикаменты!$L142=0,0,COUNTIFS($J$2:J142,Медикаменты!$J142,$L$2:L142,">"&0)) -> 0 | N142: уп.
I143: Склад | J143: Медикаменты | K143: Настойка йода (фл., 5%, 10 мл.) | L143: =SUMIFS(Главная_tb[Расход],Главная_tb[Наименование],Медикаменты!$K143,Главная_tb[Место],Медикаменты!$I143,Главная_tb[Дата],">="&$R$1,Главная_tb[Дата],"<="&$R$2) -> 0 | M143: =IF(Медикаменты!$L143=0,0,COUNTIFS($J$2:J143,Медикаменты!$J143,$L$2:L143,">"&0)) -> 0 | N143: фл.
I144: Склад | J144: Растворы | K144: Натрия бромид (2%-200мл.) | L144: =SUMIFS(Главная_tb[Расход],Главная_tb[Наименование],Медикаменты!$K144,Главная_tb[Место],Медикаменты!$I144,Главная_tb[Дата],">="&$R$1,Главная_tb[Дата],"<="&$R$2) -> 3 | M144: =IF(Медикаменты!$L144=0,0,COUNTIFS($J$2:J144,Медикаменты!$J144,$L$2:L144,">"&0)) -> 8 | N144: фл.
I145: ДС | J145: Медикаменты (ДС) | K145: Натрия тиосульфат (30%, 10 мл., №10) | L145: =SUMIFS(Главная_tb[Расход],Главная_tb[Наименование],Медикаменты!$K145,Главная_tb[Место],Медикаменты!$I145,Главная_tb[Дата],">="&$R$1,Главная_tb[Дата],"<="&$R$2) -> 0 | M145: =IF(Медикаменты!$L145=0,0,COUNTIFS($J$2:J145,Медикаменты!$J145,$L$2:L145,">"&0)) -> 0 | N145: амп.
I146: Склад | J146: Медикаменты | K146: Натрия хлорид (амп., 0,9%, 10 мл., №10) | L146: =SUMIFS(Главная_tb[Расход],Главная_tb[Наименование],Медикаменты!$K146,Главная_tb[Место],Медикаменты!$I146,Главная_tb[Дата],">="&$R$1,Главная_tb[Дата],"<="&$R$2) -> 20 | M146: =IF(Медикаменты!$L146=0,0,COUNTIFS($J$2:J146,Медикаменты!$J146,$L$2:L146,">"&0)) -> 5 | N146: амп.
I147: ДС | J147: Медикаменты (ДС) | K147: Натрия хлорид (амп., 0,9%, 10 мл., №10) | L147: =SUMIFS(Главная_tb[Расход],Главная_tb[Наименование],Медикаменты!$K147,Главная_tb[Место],Медикаменты!$I147,Главная_tb[Дата],">="&$R$1,Главная_tb[Дата],"<="&$R$2) -> 0 | M147: =IF(Медикаменты!$L147=0,0,COUNTIFS($J$2:J147,Медикаменты!$J147,$L$2:L147,">"&0)) -> 0 | N147: амп.
I148: Склад | J148: Медикаменты | K148: Натрия хлорид (амп., 0,9%, 5 мл., №10) | L148: =SUMIFS(Главная_tb[Расход],Главная_tb[Наименование],Медикаменты!$K148,Главная_tb[Место],Медикаменты!$I148,Главная_tb[Дата],">="&$R$1,Главная_tb[Дата],"<="&$R$2) -> 0 | M148: =IF(Медикаменты!$L148=0,0,COUNTIFS($J$2:J148,Медикаменты!$J148,$L$2:L148,">"&0)) -> 0 | N148: амп.
I149: ДС | J149: Медикаменты (ДС) | K149: Натрия хлорид (амп., 0,9%, 5 мл., №10) | L149: =SUMIFS(Главная_tb[Расход],Главная_tb[Наименование],Медикаменты!$K149,Главная_tb[Место],Медикаменты!$I149,Главная_tb[Дата],">="&$R$1,Главная_tb[Дата],"<="&$R$2) -> 0 | M149: =IF(Медикаменты!$L149=0,0,COUNTIFS($J$2:J149,Медикаменты!$J149,$L$2:L149,">"&0)) -> 0 | N149: амп.
I150: Склад | J150: Медикаменты | K150: Натрия хлорид (фл., 0,9%, 190 мл.) | L150: =SUMIFS(Главная_tb[Расход],Главная_tb[Наименование],Медикаменты!$K150,Главная_tb[Место],Медикаменты!$I150,Главная_tb[Дата],">="&$R$1,Главная_tb[Дата],"<="&$R$2) -> 0 | M150: =IF(Медикаменты!$L150=0,0,COUNTIFS($J$2:J150,Медикаменты!$J150,$L$2:L150,">"&0)) -> 0 | N150: фл.
I151: Склад | J151: Медикаменты | K151: Натрия хлорид (фл., 0,9%, 250 мл.) | L151: =SUMIFS(Главная_tb[Расход],Главная_tb[Наименование],Медикаменты!$K151,Главная_tb[Место],Медикаменты!$I151,Главная_tb[Дата],">="&$R$1,Главная_tb[Дата],"<="&$R$2) -> 50 | M151: =IF(Медикаменты!$L151=0,0,COUNTIFS($J$2:J151,Медикаменты!$J151,$L$2:L151,">"&0)) -> 6 | N151: фл.
I152: Склад | J152: Растворы | K152: Натрия цитрат (р-р, 100 мл.) | L152: =SUMIFS(Главная_tb[Расход],Главная_tb[Наименование],Медикаменты!$K152,Главная_tb[Место],Медикаменты!$I152,Главная_tb[Дата],">="&$R$1,Главная_tb[Дата],"<="&$R$2) -> 6 | M152: =IF(Медикаменты!$L152=0,0,COUNTIFS($J$2:J152,Медикаменты!$J152,$L$2:L152,">"&0)) -> 9 | N152: фл.
I153: ДС | J153: Медикаменты (ДС) | K153: Никотиновая кислота (амп., 1%, 1 мл., №10) | L153: =SUMIFS(Главная_tb[Расход],Главная_tb[Наименование],Медикаменты!$K153,Главная_tb[Место],Медикаменты!$I153,Главная_tb[Дата],">="&$R$1,Главная_tb[Дата],"<="&$R$2) -> 0 | M153: =IF(Медикаменты!$L153=0,0,COUNTIFS($J$2:J153,Медикаменты!$J153,$L$2:L153,">"&0)) -> 0 | N153: амп.
I154: Склад | J154: Медикаменты | K154: Новокаин (амп., 0,5%, 5 мл., №10) | L154: =SUMIFS(Главная_tb[Расход],Главная_tb[Наименование],Медикаменты!$K154,Главная_tb[Место],Медикаменты!$I154,Главная_tb[Дата],">="&$R$1,Главная_tb[Дата],"<="&$R$2) -> 0 | M154: =IF(Медикаменты!$L154=0,0,COUNTIFS($J$2:J154,Медикаменты!$J154,$L$2:L154,">"&0)) -> 0 | N154: уп.
I155: Склад | J155: Медикаменты | K155: Новокаин (амп., 2%, 2 мл., №10) | L155: =SUMIFS(Главная_tb[Расход],Главная_tb[Наименование],Медикаменты!$K155,Главная_tb[Место],Медикаменты!$I155,Главная_tb[Дата],">="&$R$1,Главная_tb[Дата],"<="&$R$2) -> 0 | M155: =IF(Медикаменты!$L155=0,0,COUNTIFS($J$2:J155,Медикаменты!$J155,$L$2:L155,">"&0)) -> 0 | N155: уп.
I156: Склад | J156: Дезсредства | K156: ОДС-14 | L156: =SUMIFS(Главная_tb[Расход],Главная_tb[Наименование],Медикаменты!$K156,Главная_tb[Место],Медикаменты!$I156,Главная_tb[Дата],">="&$R$1,Главная_tb[Дата],"<="&$R$2) -> 0 | M156: =IF(Медикаменты!$L156=0,0,COUNTIFS($J$2:J156,Медикаменты!$J156,$L$2:L156,">"&0)) -> 0 | N156: л.
I157: ДС | J157: Медикаменты (ДС) | K157: Омепразол (капс., 20 мг., №30) | L157: =SUMIFS(Главная_tb[Расход],Главная_tb[Наименование],Медикаменты!$K157,Главная_tb[Место],Медикаменты!$I157,Главная_tb[Дата],">="&$R$1,Главная_tb[Дата],"<="&$R$2) -> 0 | M157: =IF(Медикаменты!$L157=0,0,COUNTIFS($J$2:J157,Медикаменты!$J157,$L$2:L157,">"&0)) -> 0 | N157: капс.
I158: ДС | J158: Медикаменты (ДС) | K158: Омепразол (капс., 20 мг., №50) | L158: =SUMIFS(Главная_tb[Расход],Главная_tb[Наименование],Медикаменты!$K158,Главная_tb[Место],Медикаменты!$I158,Главная_tb[Дата],">="&$R$1,Главная_tb[Дата],"<="&$R$2) -> 0 | M158: =IF(Медикаменты!$L158=0,0,COUNTIFS($J$2:J158,Медикаменты!$J158,$L$2:L158,">"&0)) -> 0 | N158: капс.
I159: Склад | J159: Расходники | K159: Пакет для сбора медицинских отходов класса Б (30 л., 100 шт.) | L159: =SUMIFS(Главная_tb[Расход],Главная_tb[Наименование],Медикаменты!$K159,Главная_tb[Место],Медикаменты!$I159,Главная_tb[Дата],">="&$R$1,Главная_tb[Дата],"<="&$R$2) -> 0 | M159: =IF(Медикаменты!$L159=0,0,COUNTIFS($J$2:J159,Медикаменты!$J159,$L$2:L159,">"&0)) -> 0 | N159: уп.
I160: ДС | J160: Медикаменты (ДС) | K160: Пантогам (таб., 250 мг., №50) | L160: =SUMIFS(Главная_tb[Расход],Главная_tb[Наименование],Медикаменты!$K160,Главная_tb[Место],Медикаменты!$I160,Главная_tb[Дата],">="&$R$1,Главная_tb[Дата],"<="&$R$2) -> 0 | M160: =IF(Медикаменты!$L160=0,0,COUNTIFS($J$2:J160,Медикаменты!$J160,$L$2:L160,">"&0)) -> 0 | N160: таб.
I161: Склад | J161: Медикаменты | K161: Папаверин (амп., 2%, 2мл №10) | L161: =SUMIFS(Главная_tb[Расход],Главная_tb[Наименование],Медикаменты!$K161,Главная_tb[Место],Медикаменты!$I161,Главная_tb[Дата],">="&$R$1,Главная_tb[Дата],"<="&$R$2) -> 0 | M161: =IF(Медикаменты!$L161=0,0,COUNTIFS($J$2:J161,Медикаменты!$J161,$L$2:L161,">"&0)) -> 0 | N161: амп.
I162: Склад | J162: Медикаменты | K162: Парацетамол (таб., 500 мг., №10) | L162: =SUMIFS(Главная_tb[Расход],Главная_tb[Наименование],Медикаменты!$K162,Главная_tb[Место],Медикаменты!$I162,Главная_tb[Дата],">="&$R$1,Главная_tb[Дата],"<="&$R$2) -> 0 | M162: =IF(Медикаменты!$L162=0,0,COUNTIFS($J$2:J162,Медикаменты!$J162,$L$2:L162,">"&0)) -> 0 | N162: уп.
I163: Склад | J163: Медикаменты | K163: Парацетамол детский (сусп., 100 гр.) | L163: =SUMIFS(Главная_tb[Расход],Главная_tb[Наименование],Медикаменты!$K163,Главная_tb[Место],Медикаменты!$I163,Главная_tb[Дата],">="&$R$1,Главная_tb[Дата],"<="&$R$2) -> 0 | M163: =IF(Медикаменты!$L163=0,0,COUNTIFS($J$2:J163,Медикаменты!$J163,$L$2:L163,">"&0)) -> 0 | N163: фл.
I164: Склад | J164: Вакцина | K164: Паротитная | L164: =SUMIFS(Главная_tb[Расход],Главная_tb[Наименование],Медикаменты!$K164,Главная_tb[Место],Медикаменты!$I164,Главная_tb[Дата],">="&$R$1,Главная_tb[Дата],"<="&$R$2) -> 0 | M164: =IF(Медикаменты!$L164=0,0,COUNTIFS($J$2:J164,Медикаменты!$J164,$L$2:L164,">"&0)) -> 0 | N164: доз.
I165: Склад | J165: Вакцина | K165: Паротитно-корьевая | L165: =SUMIFS(Главная_tb[Расход],Главная_tb[Наименование],Медикаменты!$K165,Главная_tb[Место],Медикаменты!$I165,Главная_tb[Дата],">="&$R$1,Главная_tb[Дата],"<="&$R$2) -> 190 | M165: =IF(Медикаменты!$L165=0,0,COUNTIFS($J$2:J165,Медикаменты!$J165,$L$2:L165,">"&0)) -> 11 | N165: доз.
I166: Склад | J166: Вакцина | K166: Пентаксим | L166: =SUMIFS(Главная_tb[Расход],Главная_tb[Наименование],Медикаменты!$K166,Главная_tb[Место],Медикаменты!$I166,Главная_tb[Дата],">="&$R$1,Главная_tb[Дата],"<="&$R$2) -> 20 | M166: =IF(Медикаменты!$L166=0,0,COUNTIFS($J$2:J166,Медикаменты!$J166,$L$2:L166,">"&0)) -> 12 | N166: доз.
I167: Склад | J167: Растворы | K167: Перекись водорода (3%, 100 мл.) | L167: =SUMIFS(Главная_tb[Расход],Главная_tb[Наименование],Медикаменты!$K167,Главная_tb[Место],Медикаменты!$I167,Главная_tb[Дата],">="&$R$1,Главная_tb[Дата],"<="&$R$2) -> 0 | M167: =IF(Медикаменты!$L167=0,0,COUNTIFS($J$2:J167,Медикаменты!$J167,$L$2:L167,">"&0)) -> 0 | N167: фл.
I168: Склад | J168: Растворы | K168: Перекись водорода (3%, 350 мл.) | L168: =SUMIFS(Главная_tb[Расход],Главная_tb[Наименование],Медикаменты!$K168,Главная_tb[Место],Медикаменты!$I168,Главная_tb[Дата],">="&$R$1,Главная_tb[Дата],"<="&$R$2) -> 4 | M168: =IF(Медикаменты!$L168=0,0,COUNTIFS($J$2:J168,Медикаменты!$J168,$L$2:L168,">"&0)) -> 10 | N168: фл.
I169: Склад | J169: Растворы | K169: Перекись водорода (6%, 100 мл.) | L169: =SUMIFS(Главная_tb[Расход],Главная_tb[Наименование],Медикаменты!$K169,Главная_tb[Место],Медикаменты!$I169,Главная_tb[Дата],">="&$R$1,Главная_tb[Дата],"<="&$R$2) -> 0 | M169: =IF(Медикаменты!$L169=0,0,COUNTIFS($J$2:J169,Медикаменты!$J169,$L$2:L169,">"&0)) -> 0 | N169: фл.
I170: Склад | J170: Растворы | K170: Перекись водорода (6%, 400 мл.) | L170: =SUMIFS(Главная_tb[Расход],Главная_tb[Наименование],Медикаменты!$K170,Главная_tb[Место],Медикаменты!$I170,Главная_tb[Дата],">="&$R$1,Главная_tb[Дата],"<="&$R$2) -> 8 | M170: =IF(Медикаменты!$L170=0,0,COUNTIFS($J$2:J170,Медикаменты!$J170,$L$2:L170,">"&0)) -> 11 | N170: фл.
I171: Склад | J171: Расходники | K171: Перчатки (нестер, латекс.) | L171: =SUMIFS(Главная_tb[Расход],Главная_tb[Наименование],Медикаменты!$K171,Главная_tb[Место],Медикаменты!$I171,Главная_tb[Дата],">="&$R$1,Главная_tb[Дата],"<="&$R$2) -> 7050 | M171: =IF(Медикаменты!$L171=0,0,COUNTIFS($J$2:J171,Медикаменты!$J171,$L$2:L171,">"&0)) -> 11 | N171: пар.
I172: Склад | J172: Расходники | K172: Перчатки (нестер, нитрил.) | L172: =SUMIFS(Главная_tb[Расход],Главная_tb[Наименование],Медикаменты!$K172,Главная_tb[Место],Медикаменты!$I172,Главная_tb[Дата],">="&$R$1,Главная_tb[Дата],"<="&$R$2) -> 0 | M172: =IF(Медикаменты!$L172=0,0,COUNTIFS($J$2:J172,Медикаменты!$J172,$L$2:L172,">"&0)) -> 0 | N172: пар.
I173: Склад | J173: Расходники | K173: Перчатки (стер, латекс.) | L173: =SUMIFS(Главная_tb[Расход],Главная_tb[Наименование],Медикаменты!$K173,Главная_tb[Место],Медикаменты!$I173,Главная_tb[Дата],">="&$R$1,Главная_tb[Дата],"<="&$R$2) -> 0 | M173: =IF(Медикаменты!$L173=0,0,COUNTIFS($J$2:J173,Медикаменты!$J173,$L$2:L173,">"&0)) -> 0 | N173: пар.
I174: Склад | J174: Расходники | K174: Петля микробиологическая разная стерильная | L174: =SUMIFS(Главная_tb[Расход],Главная_tb[Наименование],Медикаменты!$K174,Главная_tb[Место],Медикаменты!$I174,Главная_tb[Дата],">="&$R$1,Главная_tb[Дата],"<="&$R$2) -> 0 | M174: =IF(Медикаменты!$L174=0,0,COUNTIFS($J$2:J174,Медикаменты!$J174,$L$2:L174,">"&0)) -> 0 | N174: шт.
I175: Склад | J175: Расходники | K175: Пинцет (однораз., стер.) | L175: =SUMIFS(Главная_tb[Расход],Главная_tb[Наименование],Медикаменты!$K175,Главная_tb[Место],Медикаменты!$I175,Главная_tb[Дата],">="&$R$1,Главная_tb[Дата],"<="&$R$2) -> 0 | M175: =IF(Медикаменты!$L175=0,0,COUNTIFS($J$2:J175,Медикаменты!$J175,$L$2:L175,">"&0)) -> 0 | N175: шт.
I176: ДС | J176: Медикаменты (ДС) | K176: Пирацетам (амп., 20%, 5 мл., №10) | L176: =SUMIFS(Главная_tb[Расход],Главная_tb[Наименование],Медикаменты!$K176,Главная_tb[Место],Медикаменты!$I176,Главная_tb[Дата],">="&$R$1,Главная_tb[Дата],"<="&$R$2) -> 100 | M176: =IF(Медикаменты!$L176=0,0,COUNTIFS($J$2:J176,Медикаменты!$J176,$L$2:L176,">"&0)) -> 5 | N176: амп.
I177: ДС | J177: Медикаменты (ДС) | K177: Пирацетам (таб/капс., 400 мг., №60) | L177: =SUMIFS(Главная_tb[Расход],Главная_tb[Наименование],Медикаменты!$K177,Главная_tb[Место],Медикаменты!$I177,Главная_tb[Дата],">="&$R$1,Главная_tb[Дата],"<="&$R$2) -> 0 | M177: =IF(Медикаменты!$L177=0,0,COUNTIFS($J$2:J177,Медикаменты!$J177,$L$2:L177,">"&0)) -> 0 | N177: таб.
I178: ДС | J178: Медикаменты (ДС) | K178: Пиридоксина гидрохлорид (амп., 5%, 1 мл., №10) | L178: =SUMIFS(Главная_tb[Расход],Главная_tb[Наименование],Медикаменты!$K178,Главная_tb[Место],Медикаменты!$I178,Главная_tb[Дата],">="&$R$1,Главная_tb[Дата],"<="&$R$2) -> 100 | M178: =IF(Медикаменты!$L178=0,0,COUNTIFS($J$2:J178,Медикаменты!$J178,$L$2:L178,">"&0)) -> 6 | N178: амп.
I179: Склад | J179: Вакцина | K179: Пневмо-23 | L179: =SUMIFS(Главная_tb[Расход],Главная_tb[Наименование],Медикаменты!$K179,Главная_tb[Место],Медикаменты!$I179,Главная_tb[Дата],">="&$R$1,Главная_tb[Дата],"<="&$R$2) -> 0 | M179: =IF(Медикаменты!$L179=0,0,COUNTIFS($J$2:J179,Медикаменты!$J179,$L$2:L179,">"&0)) -> 0 | N179: доз.
I180: Склад | J180: Вакцина | K180: Полимилекс | L180: =SUMIFS(Главная_tb[Расход],Главная_tb[Наименование],Медикаменты!$K180,Главная_tb[Место],Медикаменты!$I180,Главная_tb[Дата],">="&$R$1,Главная_tb[Дата],"<="&$R$2) -> 50 | M180: =IF(Медикаменты!$L180=0,0,COUNTIFS($J$2:J180,Медикаменты!$J180,$L$2:L180,">"&0)) -> 13 | N180: доз.
I181: Склад | J181: Расходники | K181: Полотенце бумажное | L181: =SUMIFS(Главная_tb[Расход],Главная_tb[Наименование],Медикаменты!$K181,Главная_tb[Место],Медикаменты!$I181,Главная_tb[Дата],">="&$R$1,Главная_tb[Дата],"<="&$R$2) -> 8 | M181: =IF(Медикаменты!$L181=0,0,COUNTIFS($J$2:J181,Медикаменты!$J181,$L$2:L181,">"&0)) -> 12 | N181: уп.
I182: Склад | J182: Вакцина | K182: Превенар-13 | L182: =SUMIFS(Главная_tb[Расход],Главная_tb[Наименование],Медикаменты!$K182,Главная_tb[Место],Медикаменты!$I182,Главная_tb[Дата],">="&$R$1,Главная_tb[Дата],"<="&$R$2) -> 240 | M182: =IF(Медикаменты!$L182=0,0,COUNTIFS($J$2:J182,Медикаменты!$J182,$L$2:L182,">"&0)) -> 14 | N182: доз.
I183: Склад | J183: Медикаменты | K183: Преднизолон (амп., 30мг/мл, 1 мл., №3) | L183: =SUMIFS(Главная_tb[Расход],Главная_tb[Наименование],Медикаменты!$K183,Главная_tb[Место],Медикаменты!$I183,Главная_tb[Дата],">="&$R$1,Главная_tb[Дата],"<="&$R$2) -> 0 | M183: =IF(Медикаменты!$L183=0,0,COUNTIFS($J$2:J183,Медикаменты!$J183,$L$2:L183,">"&0)) -> 0 | N183: уп.
I184: Склад | J184: Расходники | K184: Пробирка (10 мл., 16*100 мм., с вин. кр. и юбк.уст.) | L184: =SUMIFS(Главная_tb[Расход],Главная_tb[Наименование],Медикаменты!$K184,Главная_tb[Место],Медикаменты!$I184,Главная_tb[Дата],">="&$R$1,Главная_tb[Дата],"<="&$R$2) -> 0 | M184: =IF(Медикаменты!$L184=0,0,COUNTIFS($J$2:J184,Медикаменты!$J184,$L$2:L184,">"&0)) -> 0 | N184: шт.
I185: Склад | J185: Расходники | K185: Пробирка Vacuette (4 мл., 50 шт.) | L185: =SUMIFS(Главная_tb[Расход],Главная_tb[Наименование],Медикаменты!$K185,Главная_tb[Место],Медикаменты!$I185,Главная_tb[Дата],">="&$R$1,Главная_tb[Дата],"<="&$R$2) -> 0 | M185: =IF(Медикаменты!$L185=0,0,COUNTIFS($J$2:J185,Медикаменты!$J185,$L$2:L185,">"&0)) -> 0 | N185: шт.
I186: Склад | J186: Расходники | K186: Пробирка Vacuette (8 мл., 50 шт.) | L186: =SUMIFS(Главная_tb[Расход],Главная_tb[Наименование],Медикаменты!$K186,Главная_tb[Место],Медикаменты!$I186,Главная_tb[Дата],">="&$R$1,Главная_tb[Дата],"<="&$R$2) -> 0 | M186: =IF(Медикаменты!$L186=0,0,COUNTIFS($J$2:J186,Медикаменты!$J186,$L$2:L186,">"&0)) -> 0 | N186: шт.
I187: Склад | J187: Расходники | K187: Пробирка Vacuette (9 мл., 50 шт.) | L187: =SUMIFS(Главная_tb[Расход],Главная_tb[Наименование],Медикаменты!$K187,Главная_tb[Место],Медикаменты!$I187,Главная_tb[Дата],">="&$R$1,Главная_tb[Дата],"<="&$R$2) -> 0 | M187: =IF(Медикаменты!$L187=0,0,COUNTIFS($J$2:J187,Медикаменты!$J187,$L$2:L187,">"&0)) -> 0 | N187: шт.
I188: Склад | J188: Расходники | K188: Пробирка вакуумная Cerebrum (4 мл., 50 шт.) | L188: =SUMIFS(Главная_tb[Расход],Главная_tb[Наименование],Медикаменты!$K188,Главная_tb[Место],Медикаменты!$I188,Главная_tb[Дата],">="&$R$1,Главная_tb[Дата],"<="&$R$2) -> 0 | M188: =IF(Медикаменты!$L188=0,0,COUNTIFS($J$2:J188,Медикаменты!$J188,$L$2:L188,">"&0)) -> 0 | N188: шт.
I189: Склад | J189: Расходники | K189: Пробирка вакуумная Cerebrum (6 мл., 50 шт.) | L189: =SUMIFS(Главная_tb[Расход],Главная_tb[Наименование],Медикаменты!$K189,Главная_tb[Место],Медикаменты!$I189,Главная_tb[Дата],">="&$R$1,Главная_tb[Дата],"<="&$R$2) -> 0 | M189: =IF(Медикаменты!$L189=0,0,COUNTIFS($J$2:J189,Медикаменты!$J189,$L$2:L189,">"&0)) -> 0 | N189: шт.
I190: Склад | J190: Расходники | K190: Пробирка вакуумная Cerebrum (8 мл., 50 шт.) | L190: =SUMIFS(Главная_tb[Расход],Главная_tb[Наименование],Медикаменты!$K190,Главная_tb[Место],Медикаменты!$I190,Главная_tb[Дата],">="&$R$1,Главная_tb[Дата],"<="&$R$2) -> 0 | M190: =IF(Медикаменты!$L190=0,0,COUNTIFS($J$2:J190,Медикаменты!$J190,$L$2:L190,">"&0)) -> 0 | N190: шт.
I191: Склад | J191: Расходники | K191: Пробирка для исследования сыворотки (1 мл., 13х75) | L191: =SUMIFS(Главная_tb[Расход],Главная_tb[Наименование],Медикаменты!$K191,Главная_tb[Место],Медикаменты!$I191,Главная_tb[Дата],">="&$R$1,Главная_tb[Дата],"<="&$R$2) -> 0 | M191: =IF(Медикаменты!$L191=0,0,COUNTIFS($J$2:J191,Медикаменты!$J191,$L$2:L191,">"&0)) -> 0 | N191: шт.
I192: Склад | J192: Расходники | K192: Пробирка микровета с ЭДТА (0,2 мл., 100 шт.) | L192: =SUMIFS(Главная_tb[Расход],Главная_tb[Наименование],Медикаменты!$K192,Главная_tb[Место],Медикаменты!$I192,Главная_tb[Дата],">="&$R$1,Главная_tb[Дата],"<="&$R$2) -> 0 | M192: =IF(Медикаменты!$L192=0,0,COUNTIFS($J$2:J192,Медикаменты!$J192,$L$2:L192,">"&0)) -> 0 | N192: уп.
I193: Склад | J193: Расходники | K193: Пробирка с ватным тампоном | L193: =SUMIFS(Главная_tb[Расход],Главная_tb[Наименование],Медикаменты!$K193,Главная_tb[Место],Медикаменты!$I193,Главная_tb[Дата],">="&$R$1,Главная_tb[Дата],"<="&$R$2) -> 0 | M193: =IF(Медикаменты!$L193=0,0,COUNTIFS($J$2:J193,Медикаменты!$J193,$L$2:L193,">"&0)) -> 0 | N193: шт.
I194: Склад | J194: Расходники | K194: Пробирка с ватным тампоном стерильная (без наполнителя) | L194: =SUMIFS(Главная_tb[Расход],Главная_tb[Наименование],Медикаменты!$K194,Главная_tb[Место],Медикаменты!$I194,Главная_tb[Дата],">="&$R$1,Главная_tb[Дата],"<="&$R$2) -> 0 | M194: =IF(Медикаменты!$L194=0,0,COUNTIFS($J$2:J194,Медикаменты!$J194,$L$2:L194,">"&0)) -> 0 | N194: шт.
I195: Склад | J195: Расходники | K195: Пробирка стеклянная (10 мл.) | L195: =SUMIFS(Главная_tb[Расход],Главная_tb[Наименование],Медикаменты!$K195,Главная_tb[Место],Медикаменты!$I195,Главная_tb[Дата],">="&$R$1,Главная_tb[Дата],"<="&$R$2) -> 0 | M195: =IF(Медикаменты!$L195=0,0,COUNTIFS($J$2:J195,Медикаменты!$J195,$L$2:L195,">"&0)) -> 0 | N195: шт.
I196: Склад | J196: Расходники | K196: Пробирка ЭДТА-КЗ (1 мл., 13х75) | L196: =SUMIFS(Главная_tb[Расход],Главная_tb[Наименование],Медикаменты!$K196,Главная_tb[Место],Медикаменты!$I196,Главная_tb[Дата],">="&$R$1,Главная_tb[Дата],"<="&$R$2) -> 0 | M196: =IF(Медикаменты!$L196=0,0,COUNTIFS($J$2:J196,Медикаменты!$J196,$L$2:L196,">"&0)) -> 0 | N196: шт.
I197: Склад | J197: Расходники | K197: Пробирки микробиологические одноразовые с завинчивающейся крышкой (стер., 10 мл.) | L197: =SUMIFS(Главная_tb[Расход],Главная_tb[Наименование],Медикаменты!$K197,Главная_tb[Место],Медикаменты!$I197,Главная_tb[Дата],">="&$R$1,Главная_tb[Дата],"<="&$R$2) -> 0 | M197: =IF(Медикаменты!$L197=0,0,COUNTIFS($J$2:J197,Медикаменты!$J197,$L$2:L197,">"&0)) -> 0 | N197: шт.
I198: Склад | J198: Дезсредства | K198: Проклин антисептик (1 л. с триггером, экспресс) | L198: =SUMIFS(Главная_tb[Расход],Главная_tb[Наименование],Медикаменты!$K198,Главная_tb[Место],Медикаменты!$I198,Главная_tb[Дата],">="&$R$1,Главная_tb[Дата],"<="&$R$2) -> 2 | M198: =IF(Медикаменты!$L198=0,0,COUNTIFS($J$2:J198,Медикаменты!$J198,$L$2:L198,">"&0)) -> 6 | N198: л.
I199: Склад | J199: Дезсредства | K199: Проклин антисептик (1 л. УМР) | L199: =SUMIFS(Главная_tb[Расход],Главная_tb[Наименование],Медикаменты!$K199,Главная_tb[Место],Медикаменты!$I199,Главная_tb[Дата],">="&$R$1,Главная_tb[Дата],"<="&$R$2) -> 3 | M199: =IF(Медикаменты!$L199=0,0,COUNTIFS($J$2:J199,Медикаменты!$J199,$L$2:L199,">"&0)) -> 7 | N199: л.
I200: Склад | J200: Расходники | K200: Простыня (нест, 70х80 см., 200 шт.) | L200: =SUMIFS(Главная_tb[Расход],Главная_tb[Наименование],Медикаменты!$K200,Главная_tb[Место],Медикаменты!$I200,Главная_tb[Дата],">="&$R$1,Главная_tb[Дата],"<="&$R$2) -> 0 | M200: =IF(Медикаменты!$L200=0,0,COUNTIFS($J$2:J200,Медикаменты!$J200,$L$2:L200,">"&0)) -> 0 | N200: рул.
... 87 more rows

Sheet Накладная
E2: АДС-М | F2: АКДС | G2: Би Вак полио | H2: Биолек-туберкулин | I2: Бубо-кок | J2: БЦЖ | K2: БЦЖ-М | L2: Гепатит В | M2: Диаскинтест | N2: Краснушная
E3: Паротитно-корьевая | F3: Пентаксим | G3: Полимилекс | H3: Превенар-13 | I3: Совигрипп
E11: 1 | F11: 2 | G11: 3 | H11: 4 | I11: 5 | J11: 6 | K11: 7 | L11: 8 | M11: 9 | N11: 10
E13: =IFERROR(INDEX(Медикаменты!$K$2:$K$287,MATCH(Медикаменты!$Q$1&COLUMN(A2:J2),Медикаменты!$J$2:$J$287&Медикаменты!$M$2:$M$287,),1),"") -> АДС-М | F13: =IFERROR(INDEX(Медикаменты!$K$2:$K$287,MATCH(Медикаменты!$Q$1&COLUMN(B2:K2),Медикаменты!$J$2:$J$287&Медикаменты!$M$2:$M$287,),1),"") -> АКДС | G13: =IFERROR(INDEX(Медикаменты!$K$2:$K$287,MATCH(Медикаменты!$Q$1&COLUMN(D2:L2),Медикаменты!$J$2:$J$287&Медикаменты!$M$2:$M$287,),1),"") -> Биолек-туберкулин | H13: =IFERROR(INDEX(Медикаменты!$K$2:$K$287,MATCH(Медикаменты!$Q$1&COLUMN(D2:M2),Медикаменты!$J$2:$J$287&Медикаменты!$M$2:$M$287,),1),"") -> Биолек-туберкулин | I13: =IFERROR(INDEX(Медикаменты!$K$2:$K$287,MATCH(Медикаменты!$Q$1&COLUMN(E2:N2),Медикаменты!$J$2:$J$287&Медикаменты!$M$2:$M$287,),1),"") -> Бубо-кок | J13: =IFERROR(INDEX(Медикаменты!$K$2:$K$287,MATCH(Медикаменты!$Q$1&COLUMN(F2:O2),Медикаменты!$J$2:$J$287&Медикаменты!$M$2:$M$287,),1),"") -> БЦЖ | K13: =IFERROR(INDEX(Медикаменты!$K$2:$K$287,MATCH(Медикаменты!$Q$1&COLUMN(G2:P2),Медикаменты!$J$2:$J$287&Медикаменты!$M$2:$M$287,),1),"") -> БЦЖ-М | L13: =IFERROR(INDEX(Медикаменты!$K$2:$K$287,MATCH(Медикаменты!$Q$1&COLUMN(H2:Q2),Медикаменты!$J$2:$J$287&Медикаменты!$M$2:$M$287,),1),"") -> Гепатит В | M13: =IFERROR(INDEX(Медикаменты!$K$2:$K$287,MATCH(Медикаменты!$Q$1&COLUMN(I2:R2),Медикаменты!$J$2:$J$287&Медикаменты!$M$2:$M$287,),1),"") -> Диаскинтест | N13: =IFERROR(INDEX(Медикаменты!$K$2:$K$287,MATCH(Медикаменты!$Q$1&COLUMN(J2:S2),Медикаменты!$J$2:$J$287&Медикаменты!$M$2:$M$287,),1),"") -> Краснушная
E19: =IFERROR(INDEX(Медикаменты!$K$2:$K$287,MATCH(Медикаменты!$Q$1&COLUMN(K2:T2),Медикаменты!$J$2:$J$287&Медикаменты!$M$2:$M$287,),1),"") -> Паротитно-корьевая | F19: =IFERROR(INDEX(Медикаменты!$K$2:$K$287,MATCH(Медикаменты!$Q$1&COLUMN(L2:U2),Медикаменты!$J$2:$J$287&Медикаменты!$M$2:$M$287,),1),"") -> Пентаксим | G19: =IFERROR(INDEX(Медикаменты!$K$2:$K$287,MATCH(Медикаменты!$Q$1&COLUMN(M2:V2),Медикаменты!$J$2:$J$287&Медикаменты!$M$2:$M$287,),1),"") -> Полимилекс | H19: =IFERROR(INDEX(Медикаменты!$K$2:$K$287,MATCH(Медикаменты!$Q$1&COLUMN(N2:W2),Медикаменты!$J$2:$J$287&Медикаменты!$M$2:$M$287,),1),"") -> Превенар-13 | I19: =IFERROR(INDEX(Медикаменты!$K$2:$K$287,MATCH(Медикаменты!$Q$1&COLUMN(O2:X2),Медикаменты!$J$2:$J$287&Медикаменты!$M$2:$M$287,),1),"") -> Совигрипп | J19: =IFERROR(INDEX(Медикаменты!$K$2:$K$287,MATCH(Медикаменты!$Q$1&COLUMN(P2:Y2),Медикаменты!$J$2:$J$287&Медикаменты!$M$2:$M$287,),1),"") ->  | K19: =IFERROR(INDEX(Медикаменты!$K$2:$K$287,MATCH(Медикаменты!$Q$1&COLUMN(Q2:Z2),Медикаменты!$J$2:$J$287&Медикаменты!$M$2:$M$287,),1),"") ->  | L19: =IFERROR(INDEX(Медикаменты!$K$2:$K$287,MATCH(Медикаменты!$Q$1&COLUMN(R2:AA2),Медикаменты!$J$2:$J$287&Медикаменты!$M$2:$M$287,),1),"") ->  | M19: =IFERROR(INDEX(Медикаменты!$K$2:$K$287,MATCH(Медикаменты!$Q$1&COLUMN(S2:AB2),Медикаменты!$J$2:$J$287&Медикаменты!$M$2:$M$287,),1),"") ->  | N19: =IFERROR(INDEX(Медикаменты!$K$2:$K$287,MATCH(Медикаменты!$Q$1&COLUMN(T2:AC2),Медикаменты!$J$2:$J$287&Медикаменты!$M$2:$M$287,),1),"") -> 
E25: =IFERROR(INDEX(Медикаменты!$K$2:$K$287,MATCH(Медикаменты!$Q$1&COLUMN(U2:AD2),Медикаменты!$J$2:$J$287&Медикаменты!$M$2:$M$287,),1),"") ->  | F25: =IFERROR(INDEX(Медикаменты!$K$2:$K$287,MATCH(Медикаменты!$Q$1&COLUMN(V2:AE2),Медикаменты!$J$2:$J$287&Медикаменты!$M$2:$M$287,),1),"") ->  | G25: =IFERROR(INDEX(Медикаменты!$K$2:$K$287,MATCH(Медикаменты!$Q$1&COLUMN(W2:AF2),Медикаменты!$J$2:$J$287&Медикаменты!$M$2:$M$287,),1),"") ->  | H25: =IFERROR(INDEX(Медикаменты!$K$2:$K$287,MATCH(Медикаменты!$Q$1&COLUMN(X2:AG2),Медикаменты!$J$2:$J$287&Медикаменты!$M$2:$M$287,),1),"") ->  | I25: =IFERROR(INDEX(Медикаменты!$K$2:$K$287,MATCH(Медикаменты!$Q$1&COLUMN(Y2:AH2),Медикаменты!$J$2:$J$287&Медикаменты!$M$2:$M$287,),1),"") ->  | J25: =IFERROR(INDEX(Медикаменты!$K$2:$K$287,MATCH(Медикаменты!$Q$1&COLUMN(Z2:AI2),Медикаменты!$J$2:$J$287&Медикаменты!$M$2:$M$287,),1),"") ->  | K25: =IFERROR(INDEX(Медикаменты!$K$2:$K$287,MATCH(Медикаменты!$Q$1&COLUMN(AA2:AJ2),Медикаменты!$J$2:$J$287&Медикаменты!$M$2:$M$287,),1),"") ->  | L25: =IFERROR(INDEX(Медикаменты!$K$2:$K$287,MATCH(Медикаменты!$Q$1&COLUMN(AB2:AK2),Медикаменты!$J$2:$J$287&Медикаменты!$M$2:$M$287,),1),"") ->  | M25: =IFERROR(INDEX(Медикаменты!$K$2:$K$287,MATCH(Медикаменты!$Q$1&COLUMN(AC2:AL2),Медикаменты!$J$2:$J$287&Медикаменты!$M$2:$M$287,),1),"") ->  | N25: =IFERROR(INDEX(Медикаменты!$K$2:$K$287,MATCH(Медикаменты!$Q$1&COLUMN(AD2:AM2),Медикаменты!$J$2:$J$287&Медикаменты!$M$2:$M$287,),1),"") -> 
E30: На листе "Накладная" есть три выделенные строки по 10 ячеек. В эти ячейки переносятся наименования из таблицы "Главная_tb", которые соответствуют периоду, указанному на листе "Медикаменты" в ячейках R1 и R2, и группе, которая указана на листе "Медикаменты" в ячейке Q1, и в случае, если сумма значений найденных наименований по столбцу Расход в Главной таблице больше нуля, то такое наименование попадает на лист "накладная". И так отбираются все наименования и записываются именно в те ячейки, которые веделены на листе "Накладная"
E31: На листе "Расчет" есть форма, которая меняет данные и показывает правильный результат на листе "накладная"
E32: Наверное, я со временем справлюсь с отбором нужных наименований, но я упорно не понимаю как их запихать именно в нужные ячейки…
